Cogmind - Beta 16 @@@ ROGUE MODE // 2025.11.18 @ 09:15:01 // Winter2019/RPGLIKE Player: Willow Result: Escaped! Performance ------------- Evolutions (9) 4500 Regions Visited (35) 7000 Robots Destroyed (1013) 5065 Value Destroyed (65331) 65331 Prototype IDs (246) 4920 Alien Tech Used (7) 1400 Bonus (77192) 77192 TOTAL SCORE: 165408 Bonus ------- Triggered High Security 2500 Triggered Max Security 1000 High Alert Combat Kills 33749 Follower Combat Kills 598 Destroyed Unchained 1000 Entered Garrisons 800 Network Hubs Disabled 400 Aligned with FarCom 300 Met Data Miner 300 Used Data Conduit 3000 Acquired ECA 300 Met Warlord at Base 500 MAIN.C Attacked Warlord 500 Warlord Defense Kills 2698 A7 Reached Mainframe 300 Met R17 at Cetus 500 Met Warlord at Research 2000 Scanned by Researcher 500 Pursued by Intercept 3500 Destroyed MAIN.C Guards 500 Met Warlord at Command 2000 Met Architect 300 Started Test 138-B 500 Destroyed A8 300 Destroyed A6 400 Destroyed A5 500 Destroyed A4 700 Destroyed A3 800 Destroyed A2 1000 Destroyed Architect 15000 Win 3000 Friendly Fire -2253 Cogmind --------- Core Integrity 779/850 Matter 295/350 Energy 787/790 System Corruption 0% Temperature Cool (0) Movement Hovering (20) Location To Epsilon Eridani Parts ------- > --- POWER (3) -------- Improved Quantum Reactor Improved Quantum Reactor Zero-point Reactor > --- PROPULSION (6) --- Cooled Linear Gravjet Cooled Linear Gravjet Cooled Linear Gravjet Cooled Linear Gravjet Cooled Linear Gravjet Cooled Linear Gravjet > --- UTILITY (11) ----- Coolant Network Experimental Targeting Computer Experimental Core Analyzer Improved Armor Integrity Analyzer Precision Matter Filter Advanced Kinecellerator Experimental Reaction Control System Experimental Phase Shifter Graphene Brace Advanced Corruption Screen > --- WEAPON (6) ------- Linked Autogun Linked Autogun Linked Autogun > --- INVENTORY (6) ---- Protomatter-81 Protomatter-78 High-powered Transdimensional Reconstructor Peak State ------------ > --- POWER ------------ Improved Quantum Reactor Improved Quantum Reactor Zero-point Reactor > --- PROPULSION ------- Cooled Linear Gravjet Cooled Linear Gravjet Cooled Linear Gravjet Cooled Linear Gravjet Cooled Linear Gravjet Cooled Linear Gravjet > --- UTILITY ---------- Coolant Network Experimental Targeting Computer Experimental Core Analyzer Improved Armor Integrity Analyzer Precision Matter Filter Advanced Kinecellerator Experimental Reaction Control System Experimental Phase Shifter Graphene Brace Advanced Corruption Screen > --- WEAPON ----------- Linked Autogun Linked Autogun Heavy Hardcell Cannon > --- INVENTORY -------- Protomatter Experimental Matter Compressor Experimental Core Analyzer Linked Autogun [Rating: 235] Favorites ----------- Power Enhanced Nuclear Core Engine Light Ion Engine Power Core Enhanced Nuclear Core Reactor Improved Quantum Reactor Propulsion Xenon Bombardment Thruster Leg Aluminum Leg Hover Unit Combat Linear Gravjet Flight Unit Xenon Bombardment Thruster Utility Advanced Reaction Control System Device Advanced Reaction Control System Storage Experimental Matter Compressor Processor Experimental Targeting Computer Hackware Hacking Suite Weapon Linked Autogun Energy Gun AWS/Thermal Energy Cannon EM Pulse Cannon Ballistic Gun Linked Autogun Ballistic Cannon Heavy Hardcell Cannon Launcher Rocket Launcher Special Weapon Remote Datajack Slashing Weapon Katana Piercing Weapon Spear Special Melee Weapon Dirty Datajack Build | -11 -10 -10 -10 -9 -8 -7 -7 -7 -7 -7 -7 -6 -6 -6 -6 -6 -5 -5 -5 -5 -4 -4 -4 -4 -4 -4 -4 -3 -2 -2 -1 -1 -1 -1 -1 ------- Run | Yrd Mat Min Exi Min Mat Fac Was Fac Low Low Dat Pro Fac Gar Fac Gar Fac Upp Upp War Pro Fac Ext Cet Arc Hub Gar Res Res Qua Acc Gar Acc Com Ac0 Slots Evolved 22 | 4 . . . . 3 2 . 4 . . . . 1 . . . 1 . . 1 . 1 . 1 . . . . 2 . 1 . . 1 . Power 2 | 1 . . . . . . . . . . . . . . . . . . . . . . . . . . . . 1 . . . . . . Propulsion 5 | 1 . . . . 1 1 . . . . . . 1 . . . . . . 1 . . . . . . . . . . . . . . . Utility 10 | 1 . . . . 2 1 . 2 . . . . . . . . 1 . . . . . . . . . . . 1 . 1 . . 1 . Weapon 5 | 1 . . . . . . . 2 . . . . . . . . . . . . . 1 . 1 . . . . . . . . . . . Parts Attached 178 | 8 1 3 2 2 29 7 5 9 . . . 1 4 1 13 1 17 1 . 12 . 10 1 1 . . . 12 11 . 1 . 2 12 12 Power 17 | 2 . . . . 3 2 . 1 . . . . . . . . . . . 3 . . . . . . . 1 4 . . . . 1 . Engine 7 | 2 . . . . 3 . . 1 . . . . . . . . . . . 1 . . . . . . . . . . . . . . . Core 2 | . . . . . . 2 . . . . . . . . . . . . . . . . . . . . . . . . . . . . . Reactor 8 | . . . . . . . . . . . . . . . . . . . . 2 . . . . . . . 1 4 . . . . 1 . Propulsion 44 | 2 . . . . 11 1 . . . . . . 1 . 2 . 1 . . 3 . 5 . . . . . 9 3 . . . . . 6 Treads . | . . . . . . . . . . . . . . . . . . . . . . . . . . . . . . . . . . . . Leg 5 | 2 . . . . 3 . . . . . . . . . . . . . . . . . . . . . . . . . . . . . . Wheel . | . . . . . . . . . . . . . . . . . . . . . . . . . . . . . . . . . . . . Hover 20 | . . . . . 3 . . . . . . . . . . . . . . . . 1 . . . . . 7 3 . . . . . 6 Flight 19 | . . . . . 5 1 . . . . . . 1 . 2 . 1 . . 3 . 4 . . . . . 2 . . . . . . . Utility 78 | 2 . 1 1 2 8 3 4 5 . . . 1 2 . 6 . 13 1 . 4 . 4 . . . . . 2 4 . 1 . 2 8 4 Device 38 | 2 . 1 1 . 3 1 4 . . . . 1 . . . . 7 1 . 1 . 4 . . . . . . 3 . 1 . 2 3 3 Storage 1 | . . . . . . . . . . . . . . . . . . . . . . . . . . . . . . . . . . 1 . Processor 22 | . . . . 2 5 1 . 4 . . . . . . 3 . 2 . . 1 . . . . . . . 1 1 . . . . 1 1 Hackware 17 | . . . . . . 1 . 1 . . . . 2 . 3 . 4 . . 2 . . . . . . . 1 . . . . . 3 . Protection . | . . . . . . . . . . . . . . . . . . . . . . . . . . . . . . . . . . . . Artifact . | . . . . . . . . . . . . . . . . . . . . . . . . . . . . . . . . . . . . Weapon 39 | 2 1 2 1 . 7 1 1 3 . . . . 1 1 5 1 3 . . 2 . 1 1 1 . . . . . . . . . 3 2 Energy Gun 8 | . . . 1 . 3 1 . . . . . . . 1 . . 1 . . 1 . . . . . . . . . . . . . . . Energy Cannon 11 | . . . . . 3 . 1 . . . . . 1 . 4 . 1 . . . . . 1 . . . . . . . . . . . . Ballistic Gun 6 | 2 . . . . . . . . . . . . . . 1 . 1 . . . . 1 . 1 . . . . . . . . . . . Ballistic Cannon 4 | . . . . . . . . 1 . . . . . . . . . . . . . . . . . . . . . . . . . 1 2 Launcher 5 | . 1 1 . . 1 . . 1 . . . . . . . . . . . . . . . . . . . . . . . . . 1 . Special Weapon 1 | . . . . . . . . . . . . . . . . 1 . . . . . . . . . . . . . . . . . . . Impact Weapon . | . . . . . . . . . . . . . . . . . . . . . . . . . . . . . . . . . . . . Slashing Weapon 1 | . . 1 . . . . . . . . . . . . . . . . . . . . . . . . . . . . . . . . . Piercing Weapon 2 | . . . . . . . . 1 . . . . . . . . . . . . . . . . . . . . . . . . . 1 . Special Melee Weapon 1 | . . . . . . . . . . . . . . . . . . . . 1 . . . . . . . . . . . . . . . Unidentified Prototypes 21 | . . . 1 . 3 2 . 1 . . . . . . 1 . 1 . . 1 . 1 . . . . . . . 1 . . . 4 5 Corrupted Parts 1 | . . . . . . . . . . . . . . . . . . . . . . . . . . 1 . . . . . . . . . System Corruption 10 | . . . . . . . . . . . . . . . . . . . . . . . . . . 10 . . . . . . . . . Parts Lost 4 | . . . . . 3 . . . . . . . . . . . . 1 . . . . . . . . . . . . . . . . . Power 2 | . . . . . 2 . . . . . . . . . . . . . . . . . . . . . . . . . . . . . . Propulsion . | . . . . . . . . . . . . . . . . . . . . . . . . . . . . . . . . . . . . Utility 1 | . . . . . 1 . . . . . . . . . . . . . . . . . . . . . . . . . . . . . . Weapon 1 | . . . . . . . . . . . . . . . . . . 1 . . . . . . . . . . . . . . . . . Highest Loss Streak 1 | . . . . . 1 . . . . . . . . . . . . 1 . . . . . . . . . . . . . . . . . To Critical Strikes . | . . . . . . . . . . . . . . . . . . . . . . . . . . . . . . . . . . . . Average Backups 3 | . . 1 1 2 2 3 3 4 4 3 3 3 4 2 4 4 4 5 5 4 4 4 5 5 5 4 3 3 4 4 3 3 3 3 2 Power . | . . . . . . . . . . . . . . . . . . . . . . . . . . . . . . . . . . . . Propulsion . | . . . . . . . . . . . . . . . . . . . . . . . 1 1 1 1 1 . . . . . . . . Utility 2 | . . 1 1 2 1 2 3 4 4 3 3 3 4 2 3 1 2 3 4 3 3 4 3 3 3 3 2 3 4 3 1 1 1 . 1 Weapon . | . . . . . . 1 . . . . . . . . 1 1 1 2 1 1 1 . 1 1 1 . . . . . . . . . . Tool/Special . | . . . . . . . . . . . . . . . . . . . . . . . . . . . . . . . . . . . . Unused Backups 34 | . . . . . 5 1 1 3 . . . . . . 2 2 2 . . 1 . 5 . . . . 1 1 1 3 . 1 . 3 2 Power 2 | . . . . . . . . . . . . . . . . . 2 . . . . . . . . . . . . . . . . . . Propulsion 3 | . . . . . 1 1 . . . . . . . . . . . . . . . 1 . . . . . . . . . . . . . Utility 22 | . . . . . 4 . 1 2 . . . . . . 1 2 . . . 1 . 4 . . . . 1 1 1 3 . . . . 1 Weapon 1 | . . . . . . . . . . . . . . . 1 . . . . . . . . . . . . . . . . . . . . Tool/Special 6 | . . . . . . . . 1 . . . . . . . . . . . . . . . . . . . . . . . 1 . 3 1 Average Slot Usage (%) 88 | . 100 99 93 87 86 97 100 96 94 94 94 94 88 87 93 93 86 86 84 88 85 80 76 80 77 77 77 84 86 87 87 88 88 87 84 Engine 4 | . 25 25 25 25 11 3 . . . . . . . . . . . . . . . . . . . . . . . . . . . . . Core 4 | . . . . . . 13 15 12 11 11 11 11 11 11 11 11 10 10 10 8 . . . . . . . . . . . . . . . Reactor 3 | . . . . . . . . . . . . . . . . . . . . . 5 4 4 4 4 4 4 7 11 12 12 12 12 11 11 Leg 4 | . 25 25 25 25 10 . . . . . . . . . . . . . . . . . . . . . . . . . . . . . . Hover 6 | . . . . . 3 . . . . . . . . . . . . . . . . . . . . . . 23 25 25 24 24 24 23 23 Flight 14 | . . . . . 12 28 30 26 23 23 23 23 23 27 27 27 26 26 26 28 25 24 23 23 22 22 22 2 . . . . . . . Device 20 | . 25 25 25 13 10 8 15 18 11 11 17 17 6 21 18 16 20 25 26 24 20 27 28 28 27 27 27 24 24 25 26 28 28 27 23 Processor 13 | . . . . 10 16 24 23 21 29 28 23 23 22 12 17 16 12 5 5 5 10 9 9 9 9 9 9 11 12 12 12 12 12 12 15 Hackware 1 | . . . . . . 1 . . . . . . 9 . . 4 . 5 5 5 10 1 . . . . . . . . . . . . . Energy Gun 1 | . . . 5 12 6 . . . . . . . . 3 3 . 1 3 . . . . . . . . . . . . . . . . . Energy Cannon 5 | . . . . . 14 11 15 12 11 11 11 11 11 11 11 10 8 5 5 9 10 4 . 4 . 1 . . . . . . . . . Ballistic Gun 5 | . 24 6 . . . . . . . . . . . . 1 5 5 5 5 5 5 7 9 9 13 11 13 13 12 12 12 12 12 11 10 Peak Build Rating 235 | 10 10 17 32 32 35 48 57 71 71 72 72 73 73 74 99 100 121 115 111 145 140 156 160 169 170 170 169 178 206 208 213 213 214 226 235 Average Rating 109 | 5 10 13 22 30 24 40 51 62 69 70 72 71 66 73 83 99 111 111 106 127 140 149 154 160 169 166 168 173 192 206 209 212 212 217 231 On Entrance 110 | . 10 10 14 32 30 35 48 55 71 67 72 72 72 72 74 99 100 110 106 111 140 140 154 160 169 170 169 169 177 206 207 213 212 214 224 Avg Prop Armor Cover (%) 2 | . . . . . 9 . 2 2 . . . . 2 . 10 1 3 . . . . 1 . . . . . 1 2 . . . . . 1 Naked Turns . | . . . . . . . . . . . . . . . . . . . . . . . . . . . . . . . . . . . . Heaviest Build 132 | 12 13 16 16 16 31 34 37 48 41 41 40 40 40 49 53 55 58 54 56 69 61 66 69 72 72 72 72 84 106 106 107 107 108 132 111 Greatest Support 156 | 25 25 30 30 30 44 44 44 44 44 44 44 44 49 49 56 58 58 58 58 69 69 72 69 72 72 72 72 114 118 118 118 118 118 132 156 Greatest Overweight (x) 2 | . . . . . . . . 1 . . . . 1 . 1 . 1 . . 1 2 2 . . . . . 1 1 . . . . 1 1 Average Overweight (x) . | . . . . . . . . . . . . . . . . . . . . . . . . . . . . . . . . . . . . Largest Inventory Capacity 6 | 1 1 2 3 3 4 4 4 5 5 5 5 5 6 6 6 6 6 6 6 6 6 6 6 6 6 6 6 6 6 6 6 6 6 6 6 Average Capacity 5 | . 1 1 2 3 3 4 4 4 5 5 5 5 5 6 6 6 6 6 6 6 6 6 6 6 6 6 6 6 6 6 6 6 6 6 6 Most Carried 6 | 1 1 2 3 3 4 4 4 5 5 5 5 5 6 5 6 6 6 6 6 6 6 6 6 6 6 6 6 6 6 6 6 6 6 6 6 Average Carried 4 | . . 1 1 2 2 3 3 4 4 4 4 4 5 3 5 5 5 5 5 5 6 5 6 5 5 5 5 5 5 5 5 6 6 5 4 Final Capacity 6 | 1 1 2 3 3 4 4 4 5 5 5 5 5 6 6 6 6 6 6 6 6 6 6 6 6 6 6 6 6 6 6 6 6 6 6 6 Final Carried 6 | . 1 2 2 3 4 3 4 5 5 4 5 5 5 4 5 6 6 6 6 6 6 6 6 5 6 6 6 6 6 6 6 6 6 5 3 Class Distribution -------------------- 38% | Hacker-Sprinter 22% | Scavenger-Executioner 16% | Mutant 11% | Scavenger-Sprinter 5% | Skirmisher Dominant Class ---------------- Mutant | -10/Materials Mutant | -10/Mines Mutant | -10/Exiles Skirmisher | -9/Mines Mutant | -8/Materials Mutant | -7/Factory Hacker-Mutant | -7/Waste Hacker-Sprinter | -7/Factory Hacker-Sprinter | -7/Lower Caves Hacker-Sprinter | -7/Lower Caves Hacker-Sprinter | -7/Data Miner Hacker-Sprinter | -6/Proximity Caves Hacker-Sprinter | -6/Factory Hacker-Sprinter | -6/Garrison Hacker-Sprinter | -6/Factory Hacker-Sprinter | -6/Garrison Hacker-Sprinter | -5/Factory Hacker-Sprinter | -5/Upper Caves Hacker-Sprinter | -5/Upper Caves Hacker-Sprinter | -5/Warlord Hacker-Sprinter | -4/Proximity Caves Scavenger-Sprinter | -4/Factory Scavenger-Sprinter | -4/Extension Scavenger-Sprinter | -4/Cetus Scavenger-Sprinter | -4/Archives Scavenger-Sprinter | -4/Hub_04(d) Scavenger-Sprinter | -4/Garrison Scavenger-Executioner | -3/Research Scavenger-Executioner | -2/Research Scavenger-Executioner | -2/Quarantine Scavenger-Executioner | -1/Access Scavenger-Executioner | -1/Garrison Scavenger-Executioner | -1/Access Scavenger-Executioner | -1/Command Scavenger-Sprinter | -1/Access_0 Resources | -11 -10 -10 -10 -9 -8 -7 -7 -7 -7 -7 -7 -6 -6 -6 -6 -6 -5 -5 -5 -5 -4 -4 -4 -4 -4 -4 -4 -3 -2 -2 -1 -1 -1 -1 -1 ----------- Run | Yrd Mat Min Exi Min Mat Fac Was Fac Low Low Dat Pro Fac Gar Fac Gar Fac Upp Upp War Pro Fac Ext Cet Arc Hub Gar Res Res Qua Acc Gar Acc Com Ac0 Matter Collected 25080 | 288 97 182 362 20 339 65 80 285 . 30 . 30 60 30 136 734 1854 120 663 512 185 1610 460 205 . 666 1038 2054 1400 295 300 865 885 5725 3505 Remotely . | . . . . . . . . . . . . . . . . . . . . . . . . . . . . . . . . . . . . Salvage Created 56657 | 99 118 106 . 304 2489 538 1485 1519 . 282 22 290 1428 217 1394 1334 2988 184 802 1247 654 3569 2066 631 488 1287 1622 4720 2081 701 1358 1786 2472 11939 4437 Parts 2881 | 6 14 11 . 10 102 23 19 82 15 12 6 16 67 20 60 74 156 14 34 43 27 210 88 33 27 85 89 265 98 33 57 119 108 560 298 Haulers Intercepted 16 | . . . . . 4 . . 2 . . . . . . . . 3 . . . . 5 . . . . . 2 . . . . . . . Recyclers Shooed 6 | . 1 . . . . . . . . . . . . . . . 1 . . . . 1 . . . . . 1 . . . . . 2 . Parts Field Recycled . | . . . . . . . . . . . . . . . . . . . . . . . . . . . . . . . . . . . . Retrieved Matter . | . . . . . . . . . . . . . . . . . . . . . . . . . . . . . . . . . . . . Parts Self-Destructed 93 | . . . . . . . . . 6 2 . 8 . . . . . 14 34 . 29 . . . . . . . . . . . . . . Prevented 26 | . . . . . . . . . 9 6 . 9 . . . . . . 2 . . . . . . . . . . . . . . . . Parts Restored . | . . . . . . . . . . . . . . . . . . . . . . . . . . . . . . . . . . . . Kills | -11 -10 -10 -10 -9 -8 -7 -7 -7 -7 -7 -7 -6 -6 -6 -6 -6 -5 -5 -5 -5 -4 -4 -4 -4 -4 -4 -4 -3 -2 -2 -1 -1 -1 -1 -1 ------- Run | Yrd Mat Min Exi Min Mat Fac Was Fac Low Low Dat Pro Fac Gar Fac Gar Fac Upp Upp War Pro Fac Ext Cet Arc Hub Gar Res Res Qua Acc Gar Acc Com Ac0 Combat Hostiles Destroyed 901 | . 7 26 . 6 43 10 4 21 4 7 1 8 25 12 22 30 56 9 20 19 12 61 25 7 4 15 30 64 29 12 21 39 29 175 48 Melee 8 | . . 7 . . . . . . . . 1 . . . . . . . . . . . . . . . . . . . . . . . . Guns 703 | . 4 . . 6 6 . . . . . . . . . 7 18 51 9 20 14 12 60 25 7 4 15 30 64 29 12 19 39 29 175 48 Cannons 106 | . . . . . 27 3 3 15 2 4 . 3 17 9 6 8 5 . . 3 . 1 . . . . . . . . . . . . . AOE 44 | . 3 19 . . 6 2 . 1 . 2 . 3 1 3 2 . . . . . . . . . . . . . . . 2 . . . . Classes Destroyed 31 | 2 2 3 . 2 2 1 1 2 1 . . 2 1 1 . . . . . 4 . 1 . . . 1 . 1 . 1 . . . 3 . Worker 14 | . . 1 . . . . . . . . . . . . . . . . . . . 2 . . . 2 . 4 . . 1 . 3 1 . Builder 5 | . . . . . . . . . . . . . 1 . 1 . . . . . . . . . . 2 . 1 . . . . . . . Tunneler 4 | 1 . 1 . . . . . . . . . . . . . . . . . . . . . . . 1 . 1 . . . . . . . Hauler 16 | . . . . . 4 . . 2 . . . . . . . . 3 . . . . 5 . . . . . 2 . . . . . . . Recycler 10 | 1 . . . . 2 . . . . . . . . . . . 1 . . . . . . . . 1 . 3 . . . . 1 1 . Carrier 1 | . . . . . . . . . . . . . . . . . . . . . . . . . . . . . . . . . . 1 . Minesweeper 3 | . . . . . . . . . . . . 2 . . . . . . 1 . . . . . . . . . . . . . . . . Mechanic 5 | . . . . . . . . . . . . . . . . . . . . 1 . . . . . . . . . . . . . 4 . Operator 23 | . . . . . . . . 3 . . . . 3 . 2 . 2 . . . . 1 1 . 2 1 . 1 2 1 . . 1 3 . Drone 1 | . . . . . . . . . . . . 1 . . . . . . . . . . . . . . . . . . . . . . . Watcher 41 | . . . . . 4 2 . 5 . . . . 4 1 2 . 5 . . . . 3 2 1 . 1 . 4 1 . 1 . 2 3 . Swarmer 135 | . 3 3 . 3 3 4 . 1 . 4 . 2 . 8 1 3 14 4 6 . 1 18 . . . 2 9 6 . 4 10 14 . 12 . Cutter 5 | . . . . . . . . . . . . . . . . . . . . . . . . . . . . 3 . . . . 2 . . Saboteur 8 | . . . . . . . . . . . . . . . . . . . . . . . . . . 1 . . . . . . . 7 . Grunt 262 | . 4 3 . 1 32 . . 6 . 3 . 4 10 2 6 15 30 5 8 7 4 2 16 . . 2 6 23 11 . 5 9 11 37 . Brawler 23 | . . . . 1 . 1 . . . . . . 2 . 1 1 1 . 1 2 . . . . . . 2 . . . . . 1 10 . Duelist 29 | . . . . . . 1 . 2 . . . . 1 . . 1 3 . 1 3 1 . . . . . 2 1 . . . 2 . 11 . Protector 19 | . . . . . . . . . . . . . . . . . . . . 1 . . . . . 1 . 1 . . . . . 16 . Sentry 96 | . . . . 1 8 4 . 8 1 . . 1 2 . 6 2 3 . 2 . 1 10 5 . 4 4 2 10 4 7 . 3 1 7 . Demolisher 5 | . . 1 . . . . . . . . . . . . . . . . . 1 . . . . . . . . 3 . . . . . . Hunter 56 | . . . . . . . . . 2 . . . 4 . 4 . . . . . 2 12 2 . . . 4 1 4 . 4 8 6 3 . Programmer 83 | . . . . . . . . 4 1 . . . 4 1 2 5 2 . 2 1 3 8 . . . 1 2 10 . . 2 2 2 31 . Heavy 8 | . . . . . . . . . . . . . . . . . . . . . . 2 . . . . . 3 . . . . 1 2 . Behemoth 17 | . . . . . . . . . . . . . . 1 . 3 1 . . . . 2 2 . . 1 1 2 . . . 1 1 2 . Compactor 4 | . . . . . . . 4 . . . . . . . . . . . . . . . . . . . . . . . . . . . . Cetus Guard 7 | . . . . . . . . . . . . . . . . . . . . . . . . 7 . . . . . . . . . . . M Guard 2 | . . . . . . . . . . . . . . . . . . . . . . . . . . . . . . . . . . 2 . Enhanced Grunt 21 | . . . . . . . . . . . 1 . . . . . . . . . . . . . . . . . . . . . . . 20 Enhanced Sentry 5 | . . . . . . . . . . . . . . . . . . . . . . . . . . . . . . . . . . . 5 Enhanced Hunter 8 | . . . . . . . . . . . . . . . . . . . . . . . . . . . . . . . . . . . 8 Enhanced Programmer 8 | . . . . . . . . . . . . . . . . . . . . . . . . . . . . . . . . . . . 8 Lightning 3 | . . . . . . . . . . . . . . . . . . . . . . . . . . 3 . . . . . . . . . Tracker 12 | . . . . . . . . . . . . . 1 . 1 . 1 . . . . 3 . . . . . 2 2 . . . 2 . . Combat Programmer 12 | . . . . . . . . . . . . . 1 . 1 . 1 . . . . 3 . . . . . 2 . . . . 2 2 . Investigator 3 | . . . . . . . . . . . . . . . . . . . . . . . . . . . . . . . . . . 3 . Striker 19 | . . . . . . . . . . . . . . . . . . . . 2 . . . . . . 2 . 2 . . . . 13 . Executioner 17 | . . . . . . . . . . . . . . . . . . . . 2 . . . . . . . . 3 . . . . 12 . Alpha 7 1 | . . . . . . . . . . . . . . . . . . . . . . . . . . . . . . 1 . . . . . Assembled 19 | . . 19 . . . . . . . . . . . . . . . . . . . . . . . . . . . . . . . . . Surgeon 2 | . . . . . . . . . . . . . . . . . . . . . . . . . . . . . . . . . . 2 . Thug 6 | . . . . 1 . . . . . . . . . . . . . . . 1 . . . . . . . . . . . . . 4 . Mutant 3 | . . . . . . . . . . . . . . . . . . . . . . . . . . . . . . . . . . 3 . Best Kill Streak 55 | 2 3 19 . 2 8 4 1 6 3 4 1 6 4 6 4 6 10 4 9 6 11 11 16 5 6 12 9 13 12 7 21 55 11 41 11 Combat Bots Only 40 | . 3 19 . 2 8 4 1 3 3 4 1 6 4 6 4 6 9 4 9 6 11 11 15 4 4 9 9 11 10 7 19 34 7 40 11 Max Kills in Single Turn 7 | 1 2 7 . 1 2 1 1 1 1 2 1 1 1 2 2 1 1 1 1 1 1 2 2 1 2 4 4 3 2 2 4 3 2 5 2 Gunslinging 2 | . . . . . . . . . . . . . . . . . . . . . . 1 1 . . 1 2 1 1 1 1 2 1 2 1 Exploded 7 | . 2 7 . . 2 1 . 1 . 2 . 1 1 2 1 . . . . . . . . . . . . . . . 2 . . . . Melee 1 | . . 1 . . . . . . . . 1 . . . . . . . . . . . . . . . . . . . . . . . . Uniques/NPCs Destroyed 11 | . . . . . . . . . . . 1 . . . . . . . . . . 1 . 1 . . . . . . . . . 1 7 Data Miner (-7/Data Miner) 6S-H0T (-4/Factory) Revision 17 (-4/Cetus) Warlord (-1/Command) A8 (-1/Access_0) A6 (-1/Access_0) A5 (-1/Access_0) A4 (-1/Access_0) A2 (-1/Access_0) Architect (-1/Access_0) A3 (-1/Access_0) Combat | -11 -10 -10 -10 -9 -8 -7 -7 -7 -7 -7 -7 -6 -6 -6 -6 -6 -5 -5 -5 -5 -4 -4 -4 -4 -4 -4 -4 -3 -2 -2 -1 -1 -1 -1 -1 -------- Run | Yrd Mat Min Exi Min Mat Fac Was Fac Low Low Dat Pro Fac Gar Fac Gar Fac Upp Upp War Pro Fac Ext Cet Arc Hub Gar Res Res Qua Acc Gar Acc Com Ac0 Hostile Shots Fired 2971 | . 24 69 . 15 193 108 . 224 32 20 27 25 164 80 183 138 242 21 40 22 27 278 78 14 2 28 25 107 55 8 27 57 64 308 266 Missed 1650 | . 10 17 . 4 85 58 . 152 25 9 8 14 76 39 114 75 89 9 22 13 17 106 43 9 2 11 16 62 24 2 22 38 52 226 201 Hits 1321 | . 14 52 . 11 108 50 . 72 7 11 19 11 88 41 69 63 153 12 18 9 10 172 35 5 . 17 9 45 31 6 5 19 12 82 65 Melee 6 | . . 5 . . . . . . . . . . 1 . . . . . . . . . . . . . . . . . . . . . . Projectile 1315 | . 14 47 . 11 108 50 . 72 7 11 19 11 87 41 69 63 153 12 18 9 10 172 35 5 . 17 9 45 31 6 5 19 12 82 65 AOE 36 | . . 12 . . . . . . . . . . . . 4 . . . . 5 . . . . . . . 3 . . . . 2 10 . Critical Strikes 89 | . . . . . 5 . . 2 1 . . . . 1 1 4 29 1 3 . . 25 2 . . 2 1 2 . . . . 1 8 1 Actively Blocked 42 | . . . . . . . . . . . . . . . . . . . . . . 25 2 . . 2 1 2 . . . . 1 8 1 Part Disruptions 12 | . . . . . . . . 1 . . 1 . . . 1 1 . . . . . . . . . . . . . . 2 . . 2 4 Damage Taken 24592 | . 164 1104 . 115 1769 159 . 633 60 200 780 202 1195 513 1005 1076 2772 182 290 521 182 3469 524 78 . 671 146 997 640 109 294 234 357 2327 1824 Core 19747 | . 127 914 . 91 1427 110 . 499 48 173 653 160 977 413 792 863 2249 141 233 428 140 2768 426 60 . 535 112 786 512 84 229 183 282 1859 1473 Absorbed by Shields 1334 | . . . . . 212 200 . 192 12 4 . . . 151 200 61 . . . . . 23 155 55 . . . . . . . . . 69 . Redirected to Core 16989 | . 118 654 . 76 1173 105 . 405 32 92 481 143 758 322 716 750 1817 141 198 339 140 2488 348 60 . 494 112 762 452 84 229 183 263 1748 1306 Ignored by Resistances 2708 | . 16 76 . 11 144 70 . 97 10 28 95 25 129 91 125 112 342 25 33 52 17 405 127 17 . 41 21 102 102 11 30 30 29 223 72 Regen/Repaired (Parts) 140 | . . . . . . . 76 10 . . . . . . 13 . . . . . . . . . . . . 8 . . . . . . 33 Core Remaining (%) 83 | 100 . . . 35 54 . . . . . . 73 . . . 82 . . . . 100 . . . . . 100 100 . 100 . . . . 91 Volleys Fired 2495 | 6 17 11 . . 163 47 54 100 12 10 4 27 120 49 88 84 223 24 60 91 40 201 46 22 8 44 57 111 52 24 26 55 61 328 230 Largest 4 | 2 2 1 . . 2 1 1 1 1 1 1 1 1 3 4 3 2 1 1 1 1 2 2 2 3 3 3 3 3 3 3 3 3 3 3 Hottest 269 | 40 40 33 . . 140 75 98 98 98 63 98 63 113 226 269 180 188 30 30 75 30 90 60 60 90 98 90 90 90 90 90 90 90 105 128 Shots Fired 4656 | 12 30 11 . 22 191 47 54 100 12 10 4 27 120 66 132 119 225 24 60 91 40 293 92 44 24 102 141 329 156 55 76 155 173 957 662 Gun 3844 | 12 27 . . 22 65 . . . . . . . . 21 58 45 183 24 60 56 40 278 92 44 24 98 141 329 156 55 76 155 173 955 655 Cannon 783 | . . . . . 122 44 54 99 12 10 4 27 120 45 74 68 42 . . 35 . 15 . . . 4 . . . . . . . 1 7 Launcher 23 | . 3 11 . . 4 3 . 1 . . . . . . . . . . . . . . . . . . . . . . . . . 1 . Special 6 | . . . . . . . . . . . . . . . . 6 . . . . . . . . . . . . . . . . . . . Kinetic 3710 | 12 27 . . . . . . 2 . . . . . . 22 45 183 24 60 56 40 278 92 44 24 98 141 329 156 55 76 155 173 956 662 Thermal 348 | . . . . 22 133 1 54 15 1 . 4 . 37 9 24 . 34 . . . . 10 . . . 4 . . . . . . . . . Explosive 15 | . 3 11 . . . . . 1 . . . . . . . . . . . . . . . . . . . . . . . . . . . Electromagnetic 576 | . . . . . 58 46 . 82 11 10 . 27 83 57 86 68 8 . . 35 . 5 . . . . . . . . . . . . . Robot Hit Streak 78 | 4 5 7 . 14 25 36 37 41 24 34 38 26 32 15 29 78 31 47 33 23 18 52 37 41 14 46 32 45 42 32 25 46 71 72 65 Robot Miss Streak 5 | 4 3 2 . 2 2 1 1 2 . . . 1 2 2 2 1 2 1 2 3 2 2 1 1 3 3 3 5 2 1 3 1 2 3 3 Penetration Max . | . . . . . . . . . . . . . . . . . . . . . . . . . . . . . . . . . . . . Secondary Targets 123 | . . . . . . . . . . . . . . . . . . . . . . 9 6 3 1 4 8 6 6 1 5 6 6 50 12 Max Gunslinging Chain 2 | . . . . . . . . . . . . . . . . . . . . . . 1 1 1 1 1 1 1 1 1 1 2 1 2 1 Capacitor 64 | . . . . . . . . . . . . . . . . . 26 . . 34 . 4 . . . . . . . . . . . . . Autonomous 30 | . . . . 22 8 . . . . . . . . . . . . . . . . . . . . . . . . . . . . . . Shots Hit Robots 3976 | 5 20 20 . 18 155 41 50 87 12 10 9 26 91 41 96 108 211 24 59 81 37 263 84 43 19 77 101 255 134 42 54 117 146 833 607 Core Hits 2770 | 3 12 41 . 7 80 14 10 46 5 8 7 17 49 21 47 55 143 17 38 49 29 178 70 34 16 59 70 184 100 35 47 101 106 618 454 Critical Kills 21 | . . . . . . . 1 . . . . . 1 . . . 3 . . 2 . . . . 1 . 2 2 . 2 . . . 6 1 Critical Parts Destroyed 35 | . . . . . . . . . . . . . . . . . 7 . . 2 1 4 . . . . . 3 2 . . 1 1 9 5 Critical Strikes 70 | . . . . . 1 . 1 2 . . 1 . 1 . 2 1 10 . . 4 1 5 . . 1 . 2 5 3 2 . 1 1 15 11 Burn 1 | . . . . . 1 . . . . . . . . . . . . . . . . . . . . . . . . . . . . . . Meltdown 2 | . . . . . . . 1 . . . . . 1 . . . . . . . . . . . . . . . . . . . . . . Destroy 61 | . . . . . . . . . . . . . . . . . 10 . . 4 1 5 . . 1 . 2 5 3 2 . 1 1 15 11 Corrupt 5 | . . . . . . . . 2 . . . . . . 2 1 . . . . . . . . . . . . . . . . . . . Impale 1 | . . . . . . . . . . . 1 . . . . . . . . . . . . . . . . . . . . . . . . Melee Attacks 30 | . . 23 . . . . . 1 . . 5 . . . . . . . . . . . . . . . . . . . . . . 1 . Impact . | . . . . . . . . . . . . . . . . . . . . . . . . . . . . . . . . . . . . Slashing 23 | . . 23 . . . . . . . . . . . . . . . . . . . . . . . . . . . . . . . . . Piercing 7 | . . . . . . . . 1 . . 5 . . . . . . . . . . . . . . . . . . . . . . 1 . Sneak Attacks 2 | . . 1 . . . . . . . . 1 . . . . . . . . . . . . . . . . . . . . . . . . Combat Hostiles . | . . . . . . . . . . . . . . . . . . . . . . . . . . . . . . . . . . . . Follow-up Attacks . | . . . . . . . . . . . . . . . . . . . . . . . . . . . . . . . . . . . . Damage Inflicted 192168 | 59 376 1803 . 539 4760 1220 1688 2748 310 346 318 1048 3594 1163 3161 3980 8416 969 2692 3828 1846 12441 4546 2440 946 4000 4660 14139 6702 2262 2989 6651 8180 48364 28984 Guns 167828 | 59 237 . . 529 736 . . . . . . . . 215 1567 1946 7355 969 2692 2877 1846 12328 4546 2440 946 3830 4660 14139 6702 2262 2768 6651 8180 48364 28984 Cannons 18193 | . . . . . 2769 974 1688 2396 310 234 98 698 3121 682 1389 1709 1061 . . 951 . 113 . . . . . . . . . . . . . Explosions 5311 | . 139 1241 . . 1255 246 . 308 . 112 . 350 473 266 205 325 . . . . . . . . . 170 . . . . 221 . . . . Melee 826 | . . 562 . . . . . 44 . . 220 . . . . . . . . . . . . . . . . . . . . . . . . Ramming 10 | . . . . 10 . . . . . . . . . . . . . . . . . . . . . . . . . . . . . . . Kinetic 165789 | 59 237 . . . . . . . . . . . . . 1008 1946 7355 969 2692 2877 1846 12328 4546 2440 946 3830 4660 14139 6702 2262 2768 6651 8180 48364 28984 Thermal 9552 | . . . . 529 2713 72 1688 817 43 112 98 350 1352 319 320 325 814 . . . . . . . . . . . . . . . . . . Explosive 2256 | . 139 1241 . . 576 . . 79 . . . . . . . . . . . . . . . . . . . . . . 221 . . . . Electromagnetic 13735 | . . . . . 1471 1148 . 1808 267 234 . 698 2242 844 1833 1709 247 . . 951 . 113 . . . 170 . . . . . . . . . Impact . | . . . . . . . . . . . . . . . . . . . . . . . . . . . . . . . . . . . . Slashing 562 | . . 562 . . . . . . . . . . . . . . . . . . . . . . . . . . . . . . . . . Piercing 264 | . . . . . . . . 44 . . 220 . . . . . . . . . . . . . . . . . . . . . . . . Highest Corruption 11 | . . . . . 2 . . 3 . . . . 3 . 3 3 3 . 1 . . 2 . . . 11 10 2 . . . . . . . Average Corruption 2 | . . . . . 2 . . 1 . . . . 1 . 1 2 2 . 1 . . 1 . . . 4 5 1 . . . . . . . Corruption Purged 37 | . . . . . . . . 4 . . . . 4 . 3 3 3 . 1 . . 5 . . . 3 9 2 . . . . . . . Corruption Blocked 8 | . . . . . . . . . . . . . . . . . . . . . . . . . . . . . . 1 1 1 . 4 1 Effects 48 | . . . . . 15 . . . . . . . 2 . . 1 7 . . . . 4 . . . 3 11 5 . . . . . . . Message Errors 12 | . . . . . 6 . . . . . . . 1 . . . 2 . . . . 2 . . . . . 1 . . . . . . . Matter Fused 9 | . . . . . 1 . . . . . . . 1 . . . 1 . . . . 2 . . . 1 1 2 . . . . . . . Heat Flow Errors 3 | . . . . . 1 . . . . . . . . . . . . . . . . . . . . . 1 1 . . . . . . . Energy Discharges 5 | . . . . . . . . . . . . . . . . . 2 . . . . . . . . . 2 1 . . . . . . . Parts Rejected 1 | . . . . . . . . . . . . . . . . . . . . . . . . . . 1 . . . . . . . . . Parts Fused 1 | . . . . . . . . . . . . . . . . . . . . . . . . . . . 1 . . . . . . . . Data Loss (minor) 7 | . . . . . 4 . . . . . . . . . . . . . . . . . . . . . 3 . . . . . . . . Data Loss (major) 3 | . . . . . 1 . . . . . . . . . . 1 1 . . . . . . . . . . . . . . . . . . Misfires 2 | . . . . . 1 . . . . . . . . . . . . . . . . . . . . . 1 . . . . . . . . Weapon Failures 5 | . . . . . 1 . . . . . . . . . . . 1 . . . . . . . . 1 2 . . . . . . . . Overload Shots . | . . . . . . . . . . . . . . . . . . . . . . . . . . . . . . . . . . . . Overflow Damage 591 | . . 100 . . 128 19 . 52 . . . . 141 4 112 16 5 . . . . . . . . 14 . . . . . . . . . Projectiles 258 | . . . . . 24 19 . 46 . . . . 126 . 22 16 5 . . . . . . . . . . . . . . . . . . Explosions 265 | . . 32 . . 104 . . 6 . . . . 15 4 90 . . . . . . . . . . 14 . . . . . . . . . Melee 68 | . . 68 . . . . . . . . . . . . . . . . . . . . . . . . . . . . . . . . . Knockbacks . | . . . . . . . . . . . . . . . . . . . . . . . . . . . . . . . . . . . . Impact . | . . . . . . . . . . . . . . . . . . . . . . . . . . . . . . . . . . . . Kinetic . | . . . . . . . . . . . . . . . . . . . . . . . . . . . . . . . . . . . . Secondary . | . . . . . . . . . . . . . . . . . . . . . . . . . . . . . . . . . . . . Self-Inflicted Damage 1042 | . 36 109 . . 405 . . 25 . . . . 52 . 68 . . . . . . . . . . 191 . . . . 156 . . . . Shots 17 | . 1 3 . . 6 . . 1 . . . . 1 . 1 . . . . . . . . . . 2 . . . . 2 . . . . Rammed . | . . . . . . . . . . . . . . . . . . . . . . . . . . . . . . . . . . . . Targets Rammed 4 | . . . . 4 . . . . . . . . . . . . . . . . . . . . . . . . . . . . . . . Kicked 4 | . . . . 4 . . . . . . . . . . . . . . . . . . . . . . . . . . . . . . . Crushed . | . . . . . . . . . . . . . . . . . . . . . . . . . . . . . . . . . . . . Highest Temperature 479 | . . . . . 313 8 252 198 44 20 144 36 228 195 170 224 479 22 22 282 8 184 209 163 283 317 319 377 348 182 267 320 414 345 285 Average Temperature 77 | . . . . . 74 5 64 34 15 10 77 18 50 47 41 74 84 11 8 114 5 50 70 80 123 96 109 102 70 89 98 84 121 128 114 Received Heat Transfer 2732 | . 60 24 . 30 719 30 . 165 6 30 . 90 174 44 111 183 246 93 75 74 9 111 124 4 . 27 9 81 72 . 9 . . 105 27 Effects 25 | . . . . . 5 . 1 . . . . . . . . . 10 . . . . . . . . . 4 . 1 . . . 1 3 . Shutdowns 4 | . . . . . . . . . . . . . . . . . 3 . . . . . . . . . . . . . . . . 1 . Energy Bleed 3 | . . . . . . . 1 . . . . . . . . . . . . . . . . . . . 1 . . . . . 1 . . Interference 11 | . . . . . 5 . . . . . . . . . . . 3 . . . . . . . . . 3 . . . . . . . . Matter Decay 2 | . . . . . . . . . . . . . . . . . 1 . . . . . . . . . . . . . . . . 1 . Damage (minor) 2 | . . . . . . . . . . . . . . . . . . . . . . . . . . . . . 1 . . . . 1 . Damage (major) 3 | . . . . . . . . . . . . . . . . . 3 . . . . . . . . . . . . . . . . . . Siege Activations . | . . . . . . . . . . . . . . . . . . . . . . . . . . . . . . . . . . . . Martial Activations . | . . . . . . . . . . . . . . . . . . . . . . . . . . . . . . . . . . . . Shielding Activations . | . . . . . . . . . . . . . . . . . . . . . . . . . . . . . . . . . . . . Robots Disrupted 1 | . . . . . . . . . . . . . 1 . . . . . . . . . . . . . . . . . . . . . . Combat Hostiles 1 | . . . . . . . . . . . . . 1 . . . . . . . . . . . . . . . . . . . . . . Robots Corrupted 36 | . . . . . 2 6 . 5 2 1 . 2 5 . 7 4 . . . 2 . . . . . . . . . . . . . . . Combat Hostiles 35 | . . . . . 2 5 . 5 2 1 . 2 5 . 7 4 . . . 2 . . . . . . . . . . . . . . . Parts Fried 98 | . . . . . 11 8 . 10 . . . 6 25 4 22 5 3 . . 3 . 1 . . . . . . . . . . . . . Impact Corruptions . | . . . . . . . . . . . . . . . . . . . . . . . . . . . . . . . . . . . . Robots Melted 5 | . . . . . 2 . 1 . . . . . 2 . . . . . . . . . . . . . . . . . . . . . . Combat Hostiles 5 | . . . . . 2 . 1 . . . . . 2 . . . . . . . . . . . . . . . . . . . . . . Parts Melted 28 | . . . . 1 10 . 2 6 . . . . 4 . . . . . . 4 . 1 . . . . . . . . . . . . . Heat Transferred 11536 | . . . . 629 4298 50 2487 950 50 100 200 250 1118 237 224 250 693 . . . . . . . . . . . . . . . . . . Parts Sabotaged . | . . . . . . . . . . . . . . . . . . . . . . . . . . . . . . . . . . . . Parts Stolen . | . . . . . . . . . . . . . . . . . . . . . . . . . . . . . . . . . . . . Parts Stripped . | . . . . . . . . . . . . . . . . . . . . . . . . . . . . . . . . . . . . Power Chain Reactions 27 | . . . . . 4 1 . 4 . 1 . 3 7 3 1 3 . . . . . . . . . . . . . . . . . . . Alert | -11 -10 -10 -10 -9 -8 -7 -7 -7 -7 -7 -7 -6 -6 -6 -6 -6 -5 -5 -5 -5 -4 -4 -4 -4 -4 -4 -4 -3 -2 -2 -1 -1 -1 -1 -1 ------- Run | Yrd Mat Min Exi Min Mat Fac Was Fac Low Low Dat Pro Fac Gar Fac Gar Fac Upp Upp War Pro Fac Ext Cet Arc Hub Gar Res Res Qua Acc Gar Acc Com Ac0 Maximum Alert Level 5 | . . . . . 3 2 1 3 . . . . 3 3 2 3 5 . . . . 4 3 3 1 4 5 5 5 5 5 5 5 5 . Low Security (%) 19 | 100 100 100 . 100 7 . 87 7 . . . . 9 . . . . . . . . 13 . . . 31 . . . . . . . . . Level 1 10 | . . . . . 26 7 12 11 . . . . 22 9 40 12 2 . . . . 25 . . 100 19 . . . . . . . . . Level 2 22 | . . . . . 52 93 . 46 . . . . 32 50 59 28 21 . . . . 22 29 54 . 10 . . . . . . . . . Level 3 17 | . . . . . 13 . . 35 . . . . 35 39 . 59 25 . . . . 10 70 45 . 16 41 36 11 . . . . . . Level 4 15 | . . . . . . . . . . . . . . . . . 43 . . . . 28 . . . 21 48 35 85 . 66 18 26 2 . Level 5 3 | . . . . . . . . . . . . . . . . . . . . . . . . . . . 10 15 2 . 31 81 21 5 . High Security 9 | . . . . . . . . . . . . . . . . . 5 . . . . . . . . . . 13 . . 2 . 52 91 . Max Security 1 | . . . . . . . . . . . . . . . . . . . . . . . . . . . . . . 99 . . . . . Peak Influence 5403 | 5 160 153 . 81 881 651 219 869 . . . . 1011 824 577 1080 1723 . . . . 1576 1089 776 399 1160 1726 2122 1614 1897 1719 2502 2320 5403 . Initial 1500 | . . 40 . . 25 399 219 74 . . . . 56 220 432 331 567 . . . . 128 769 592 303 139 822 970 1193 872 1137 1392 1500 1484 . Average 925 | . 69 31 . 12 483 546 163 599 . . . . 524 618 420 760 1054 . . . . 672 823 706 370 543 1203 1358 1363 1706 1451 2045 1841 3174 . Influence Increases 29022 | 10 336 310 . 198 1892 379 38 2167 80 175 20 185 1383 604 1051 789 1888 200 441 400 324 2060 880 206 106 1276 904 2054 786 297 663 1110 880 3969 961 Destroy 0b10 Robot/C 16780 | . 140 140 . 140 900 200 . 940 80 140 20 140 500 240 440 600 1120 180 400 360 260 1200 520 160 80 280 600 1300 580 240 420 780 580 3100 . Destroy 0b10 Robot/NC 740 | 10 . 10 . . 50 10 . 70 . . . 15 40 5 25 . 55 . 5 10 . 60 15 10 10 45 . 85 15 5 10 . 35 145 . Destroy Leader 3062 | . 30 40 . 20 226 64 . 224 . 20 . . 158 20 144 50 196 20 30 . 30 358 54 . . 72 40 312 152 10 62 90 154 486 . Allied During Kill 452 | . . . . 18 18 . . 133 . . . . . . . . . . 6 . 34 . 225 16 2 . . . . . . . . . . Successful Hack 820 | . 46 . . . 36 60 . 63 . . . . 61 14 65 10 138 . . . . 91 40 8 . 5 24 138 . . 21 . . . . Select Force Hacks 930 | . 60 . . . 140 30 . 210 . . . . 230 . 80 . 90 . . . . 90 . . . . . . . . . . . . . Disable Machine 1245 | . 15 . . . 195 . . 180 . . . . 45 30 90 30 30 . . . . 30 . . . 225 45 . . 30 30 30 45 75 120 Anti-Garrison Action 650 | . . . . . . . . . . . . . 200 50 . . . . . . . . . . . 150 100 . . . . 150 . . . Destroy Structure 2243 | . 15 45 . 5 132 . 23 137 . . . . 29 65 57 54 34 . . . . 96 26 12 14 394 80 24 9 12 120 15 6 28 811 Partial Spotted 405 | . . . . . 15 . 15 60 . . . . 30 75 30 . . . . . . 30 . . . 15 15 75 15 . . . . . 30 Lose Combat Pursuer 1695 | . 30 75 . 15 180 15 . 150 . 15 . 30 90 105 120 45 225 . . 30 . 105 . . . 90 . 120 15 . . 45 60 135 . Influence Decreases 29107 | 10 231 274 141 133 1080 628 559 1409 461 183 496 95 1158 95 1402 182 1245 728 398 1370 388 694 1391 507 465 500 353 1658 1357 679 820 348 1062 886 5721 Entered New Map 18729 | . . 65 141 . 40 478 409 33 321 93 476 . 34 95 392 142 513 638 228 1238 268 76 801 467 455 260 353 756 929 679 760 348 1002 836 5403 Time Decay 5928 | 10 231 209 . 133 510 150 150 526 140 90 20 95 374 . 410 . 422 80 130 132 120 428 120 40 10 90 . 392 428 . 60 . 60 50 318 Lost Part 40 | . . . . . 30 . . . . . . . . . . . . 10 . . . . . . . . . . . . . . . . . Lost Ally 510 | . . . . . 50 . . 250 . . . . . . . 40 10 . 40 . . 40 20 . . . . 60 . . . . . . . Purge Threat 3900 | . . . . . 450 . . 600 . . . . 750 . 600 . 300 . . . . 150 450 . . 150 . 450 . . . . . . . Squads Dispatched 180 | . 2 1 . . 8 8 . 19 . . . . 15 . 15 . 17 . . . . 15 3 . . 3 . 17 3 6 2 . 9 37 . Investigation 65 | . 2 1 . . 7 3 . 11 . . . . 9 . 12 . 7 . . . . 3 2 . . . . 6 . . 1 . . 1 . Extermination 17 | . . . . . . 1 . 3 . . . . 2 . 2 . 1 . . . . 3 . . . . . 3 . . 1 . 1 . . Reinforcement 19 | . . . . . 1 1 . 3 . . . . 1 . . . 6 . . . . 3 . . . 1 . 1 . . . . 2 . . Assault 62 | . . . . . . . . 2 . . . . 2 . . . 2 . . . . 3 1 . . 2 . 4 . 6 . . 4 36 . Garrison 5 | . . . . . . 3 . . . . . . . . . . . . . . . . . . . . . 1 . . . . 1 . . Intercept 12 | . . . . . . . . . . . . . 1 . 1 . 1 . . . . 3 . . . . . 2 3 . . . 1 . . Searches Triggered . | . . . . . . . . . . . . . . . . . . . . . . . . . . . . . . . . . . . . Unchained Authorized 2 | . . . . . . . . . . . . . . . . . 1 . . . . 1 . . . . . . . . . . . . . Construction Impeded . | . . . . . . . . . . . . . . . . . . . . . . . . . . . . . . . . . . . . Haulers Reinforced 9 | . . . . . . . . 1 . . . . 1 . . . 4 . . . . 2 . . . . . . . . . . 1 . . Active Scanning Responses . | . . . . . . . . . . . . . . . . . . . . . . . . . . . . . . . . . . . . Cargo Convoy Interrupts . | . . . . . . . . . . . . . . . . . . . . . . . . . . . . . . . . . . . . Stealth | -11 -10 -10 -10 -9 -8 -7 -7 -7 -7 -7 -7 -6 -6 -6 -6 -6 -5 -5 -5 -5 -4 -4 -4 -4 -4 -4 -4 -3 -2 -2 -1 -1 -1 -1 -1 --------- Run | Yrd Mat Min Exi Min Mat Fac Was Fac Low Low Dat Pro Fac Gar Fac Gar Fac Upp Upp War Pro Fac Ext Cet Arc Hub Gar Res Res Qua Acc Gar Acc Com Ac0 Distress Signals 33 | . . . . . 5 . . 1 . . . . 2 . . . 2 . . . . 1 . 2 . 1 . 2 6 . 1 . 3 7 . Communications Jammed 265 | . . . . . . . . 5 . . . 1 . . 8 . 6 . . 136 . 47 6 8 . 33 . 15 . . . . . . . Distress Signals 256 | . . . . . . . . 5 . . . . . . 8 . 6 . . 136 . 41 6 8 . 33 . 13 . . . . . . . Times Spotted 1197 | . 12 30 . 8 61 13 6 49 4 8 4 8 45 19 39 29 82 9 20 67 11 83 31 10 2 31 17 74 33 14 22 27 43 221 65 Peak Tracking Total 18 | . 3 18 . 3 8 4 1 8 3 4 4 3 7 8 7 5 8 4 7 12 2 6 8 5 1 12 3 9 10 7 6 7 8 18 6 Tactical Retreats 60 | . 1 2 . 1 5 1 . 4 . 1 . 1 5 3 3 2 8 . . 2 . 4 . . . 4 . 3 1 . . 1 2 6 . Traps | -11 -10 -10 -10 -9 -8 -7 -7 -7 -7 -7 -7 -6 -6 -6 -6 -6 -5 -5 -5 -5 -4 -4 -4 -4 -4 -4 -4 -3 -2 -2 -1 -1 -1 -1 -1 ------- Run | Yrd Mat Min Exi Min Mat Fac Was Fac Low Low Dat Pro Fac Gar Fac Gar Fac Upp Upp War Pro Fac Ext Cet Arc Hub Gar Res Res Qua Acc Gar Acc Com Ac0 Traps Triggered 29 | . . 1 . . 2 1 . 3 . . . . . 3 2 4 . . . . . 4 3 . . 1 . 2 . . 1 2 . . . Indirectly . | . . . . . . . . . . . . . . . . . . . . . . . . . . . . . . . . . . . . Trap Hack Attempts . | . . . . . . . . . . . . . . . . . . . . . . . . . . . . . . . . . . . . Triggered . | . . . . . . . . . . . . . . . . . . . . . . . . . . . . . . . . . . . . Disarmed . | . . . . . . . . . . . . . . . . . . . . . . . . . . . . . . . . . . . . Reprogrammed . | . . . . . . . . . . . . . . . . . . . . . . . . . . . . . . . . . . . . Reused . | . . . . . . . . . . . . . . . . . . . . . . . . . . . . . . . . . . . . Traps Extracted . | . . . . . . . . . . . . . . . . . . . . . . . . . . . . . . . . . . . . Installed . | . . . . . . . . . . . . . . . . . . . . . . . . . . . . . . . . . . . . Triggered . | . . . . . . . . . . . . . . . . . . . . . . . . . . . . . . . . . . . . Machines | -11 -10 -10 -10 -9 -8 -7 -7 -7 -7 -7 -7 -6 -6 -6 -6 -6 -5 -5 -5 -5 -4 -4 -4 -4 -4 -4 -4 -3 -2 -2 -1 -1 -1 -1 -1 ---------- Run | Yrd Mat Min Exi Min Mat Fac Was Fac Low Low Dat Pro Fac Gar Fac Gar Fac Upp Upp War Pro Fac Ext Cet Arc Hub Gar Res Res Qua Acc Gar Acc Com Ac0 Machines Disabled 96 | . 1 . . . 13 . . 12 . . . 1 3 3 6 3 2 . . . . 2 1 . . 16 8 . . 2 2 5 3 5 8 Max in Single Turn 13 | . 1 . . . 9 . . 3 . . . 1 1 1 4 1 1 . . . . 1 1 . . 13 1 . . 1 1 1 1 1 1 Garrison Access 14 | . . . . . 1 . . 1 . . . . 1 . 1 . 2 . . . . 4 . . . 1 . 3 . . . . . . . Garrison Relay 6 | . . . . . . . . . . . . . . 1 . . . . . . . . . . . . 2 . . . . 3 . . . Network Hub 2 | . . . . . . . . . . . . . . . . . . . . . . . . . . 2 . . . . . . . . . Energy Cycler 3 | . . . . . . . . . . . . . . . . . . . . . . . . . . . . . . . 1 . 2 . . Machines Repaired . | . . . . . . . . . . . . . . . . . . . . . . . . . . . . . . . . . . . . Machines Dismantled . | . . . . . . . . . . . . . . . . . . . . . . . . . . . . . . . . . . . . Machines Sabotaged 1 | . . . . . 1 . . . . . . . . . . . . . . . . . . . . . . . . . . . . . . Overloaded Fab Kills 4 | . . . . . . . . . . . . . 4 . . . . . . . . . . . . . . . . . . . . . . Hacking | -11 -10 -10 -10 -9 -8 -7 -7 -7 -7 -7 -7 -6 -6 -6 -6 -6 -5 -5 -5 -5 -4 -4 -4 -4 -4 -4 -4 -3 -2 -2 -1 -1 -1 -1 -1 --------- Run | Yrd Mat Min Exi Min Mat Fac Was Fac Low Low Dat Pro Fac Gar Fac Gar Fac Upp Upp War Pro Fac Ext Cet Arc Hub Gar Res Res Qua Acc Gar Acc Com Ac0 Machines Accessed 204 | . 8 2 2 . 15 6 . 25 . . 4 1 20 2 26 2 24 . . 7 . 19 12 1 . 4 2 16 . . 2 . . 2 2 Terminals 114 | . 6 1 . . 11 2 . 14 . . . 1 9 2 15 2 14 . . . . 10 12 1 . 3 2 7 . . . . . 2 . Fabricators 20 | . . . . . . 1 . 2 . . . . 3 . 5 . 5 . . . . 1 . . . . . 3 . . . . . . . Repair Stations 4 | . . . . . . 1 . 1 . . . . . . 1 . . . . . . . . . . . . 1 . . . . . . . Recycling Units 13 | . 2 . . . 2 . . 4 . . . . 5 . . . . . . . . . . . . . . . . . . . . . . Scanalyzers 17 | . . . . . 1 1 . 3 . . . . 1 . 2 . 3 . . . . 4 . . . . . 2 . . . . . . . Garrison Access 20 | . . . . . 1 1 . 1 . . . . 2 . 3 . 2 . . . . 4 . . . 1 . 3 . . 2 . . . . Total Hacks 650 | . 32 4 2 . 48 19 . 75 . . 29 4 59 3 74 3 65 . . 8 . 63 36 1 . 7 7 77 . . 8 . . 6 20 Successful 381 | . 21 2 2 . 30 13 . 35 . . 29 4 36 2 40 2 36 . . 8 . 38 18 1 . 7 2 33 . . 1 . . 1 20 Failed 267 | . 10 2 . . 17 6 . 40 . . . . 23 1 34 1 29 . . . . 25 18 . . . 5 44 . . 7 . . 5 . Catastrophic 37 | . 1 . . . 1 2 . 5 . . . . 3 . 9 . 4 . . . . 4 1 . . . . 5 . . 2 . . . . Database Lockouts 2 | . 1 . . . 1 . . . . . . . . . . . . . . . . . . . . . . . . . . . . . . Manual 306 | . 28 4 1 . 39 3 . 48 . . . . 45 . 30 . 34 . . 1 . 30 14 . . 3 . 26 . . . . . . . Terminals 407 | . 28 3 . . 43 6 . 47 . . . 4 45 3 47 3 40 . . . . 45 36 1 . 6 7 37 . . . . . 6 . Fabricators 63 | . . . . . . 2 . 8 . . . . 4 . 15 . 19 . . . . 2 . . . . . 13 . . . . . . . Repair Stations 10 | . . . . . . 2 . 1 . . . . . . 1 . . . . . . . . . . . . 6 . . . . . . . Recycling Units 18 | . 4 . . . 2 . . 7 . . . . 5 . . . . . . . . . . . . . . . . . . . . . . Scanalyzers 50 | . . . . . 1 7 . 9 . . . . 1 . 3 . 3 . . . . 11 . . . . . 15 . . . . . . . Garrison Access 42 | . . . . . 2 2 . 3 . . . . 4 . 8 . 3 . . . . 5 . . . 1 . 6 . . 8 . . . . Terminal Hacks 178 | . 9 1 2 . 12 4 . 11 . . 29 4 15 2 12 2 8 . . 8 . 14 13 1 . 4 2 4 . . . . . 1 20 Record 41 | . . . 1 . . . . . . . 11 4 . . . . . . . 7 . . 1 . . . . . . . . . . . 17 Part Schematic 25 | . . . . . . . . . . . 12 . 2 . 3 . 2 . . . . 5 . . . . . 1 . . . . . . . Robot Schematic 5 | . . . . . . . . . . . 3 . . . . . 1 . . . . 1 . . . . . . . . . . . . . Robot Analysis 6 | . 3 . . . 1 1 . 1 . . . . . . . . . . . . . . . . . . . . . . . . . . . Prototype ID Bank 11 | . 3 . . . 1 . . 3 . . 3 . 1 . . . . . . . . . . . . . . . . . . . . . . Open Door 12 | . . 1 . . . . . . . . . . . . . . . . . 1 . 1 8 1 . . . . . . . . . . . Level Access Points 1 | . . . . . . . . . . . . . 1 . . . . . . . . . . . . . . . . . . . . . . Branch Access Points 2 | . . . . . 1 . . . . . . . . . . . . . . . . 1 . . . . . . . . . . . . . Emergency Access Points 2 | . . . . . . . . . . . . . . 1 . 1 . . . . . . . . . . . . . . . . . . . Terminal Index 3 | . 1 . . . 1 1 . . . . . . . . . . . . . . . . . . . . . . . . . . . . . Recycling Unit Index 2 | . 1 . . . 1 . . . . . . . . . . . . . . . . . . . . . . . . . . . . . . Alert Level 23 | . . . . . 4 1 . 2 . . . . 5 . 2 . 3 . . . . 3 1 . . 2 . . . . . . . . . Unreport Threat 26 | . . . . . 3 . . 4 . . . . 5 . 4 . 2 . . . . 1 3 . . 1 . 3 . . . . . . . Locate Traps 2 | . 1 . . . . . . . . . . . . . 1 . . . . . . . . . . . . . . . . . . . . Security Status 1 | . . . . . . 1 . . . . . . . . . . . . . . . . . . . . . . . . . . . . . Reinforcement Status 1 | . . . . . . . . . . . . . . . 1 . . . . . . . . . . . . . . . . . . . . Recall Investigation 1 | . . . . . . . . 1 . . . . . . . . . . . . . . . . . . . . . . . . . . . Hauler Manifests 4 | . . . . . . . . . . . . . 1 . . . . . . . . 2 . . . 1 . . . . . . . . . Registered Prototypes 1 | . . . . . . . . . . . . . . . 1 . . . . . . . . . . . . . . . . . . . . Garrison Registry 1 | . . . . . . . . . . . . . . . . . . . . . . . . . . . 1 . . . . . . . . Patrol Navigation 1 | . . . . . . . . . . . . . . . . . . . . . . . . . . . 1 . . . . . . . . Security Stations 2 | . . . . . . . . . . . . . . 1 . 1 . . . . . . . . . . . . . . . . . . . Proto ID Catalog 1 | . . . 1 . . . . . . . . . . . . . . . . . . . . . . . . . . . . . . . . Disengage Seal 1 | . . . . . . . . . . . . . . . . . . . . . . . . . . . . . . . . . . 1 . Gate Test 138-A 1 | . . . . . . . . . . . . . . . . . . . . . . . . . . . . . . . . . . . 1 Gate Test 138-B 1 | . . . . . . . . . . . . . . . . . . . . . . . . . . . . . . . . . . . 1 Gate Test 138-END 1 | . . . . . . . . . . . . . . . . . . . . . . . . . . . . . . . . . . . 1 Fabricator Hacks 32 | . . . . . . 1 . 4 . . . . 3 . 10 . 9 . . . . . . . . . . 5 . . . . . . . Network Status 9 | . . . . . . . . 1 . . . . 2 . 3 . 2 . . . . . . . . . . 1 . . . . . . . Load Schematic 14 | . . . . . . 1 . 1 . . . . . . 4 . 5 . . . . . . . . . . 3 . . . . . . . Build 9 | . . . . . . . . 2 . . . . 1 . 3 . 2 . . . . . . . . . . 1 . . . . . . . Repair Station Hacks 4 | . . . . . . 2 . . . . . . . . . . . . . . . . . . . . . 2 . . . . . . . Scan Component 2 | . . . . . . 1 . . . . . . . . . . . . . . . . . . . . . 1 . . . . . . . Repair 2 | . . . . . . 1 . . . . . . . . . . . . . . . . . . . . . 1 . . . . . . . Recycling Unit Hacks . | . . . . . . . . . . . . . . . . . . . . . . . . . . . . . . . . . . . . Scanalyzer 17 | . . . . . . 3 . 1 . . . . . . . . . . . . . 5 . . . . . 8 . . . . . . . Insert Component 11 | . . . . . . 2 . 1 . . . . . . . . . . . . . 3 . . . . . 5 . . . . . . . Analyze 6 | . . . . . . 1 . . . . . . . . . . . . . . . 2 . . . . . 3 . . . . . . . Garrison Access Hacks 16 | . . . . . 1 . . 1 . . . . 1 . 2 . 2 . . . . 4 . . . 1 . 3 . . 1 . . . . Unlock Access 4 | . . . . . . . . . . . . . 1 . 1 . . . . . . . . . . 1 . . . . 1 . . . . Seal Access 12 | . . . . . 1 . . 1 . . . . . . 1 . 2 . . . . 4 . . . . . 3 . . . . . . . Unauthorized Hacks 133 | . 12 1 . . 17 3 . 18 . . . . 17 . 16 . 17 . . . . 14 5 . . 2 . 11 . . . . . . . Terminals 90 | . 10 1 . . 14 1 . 9 . . . . 9 . 10 . 11 . . . . 10 5 . . 2 . 8 . . . . . . . Assimilate 3 | . 1 . . . 1 . . . . . . . . . . . 1 . . . . . . . . . . . . . . . . . . Botnet 33 | . 3 . . . 4 1 . 3 . . . . 4 . 4 . 4 . . . . 4 2 . . 1 . 3 . . . . . . . Operators 3 | . 1 . . . 2 . . . . . . . . . . . . . . . . . . . . . . . . . . . . . . Skim 49 | . 5 . . . 6 . . 6 . . . . 5 . 6 . 6 . . . . 6 3 . . 1 . 5 . . . . . . . Sabotage 1 | . . . . . 1 . . . . . . . . . . . . . . . . . . . . . . . . . . . . . . Search 1 | . . 1 . . . . . . . . . . . . . . . . . . . . . . . . . . . . . . . . . Fabricators 13 | . . . . . . 1 . 1 . . . . 1 . 3 . 3 . . . . 1 . . . . . 3 . . . . . . . Prioritize 1 | . . . . . . . . 1 . . . . . . . . . . . . . . . . . . . . . . . . . . . Liberate 1 | . . . . . . . . . . . . . . . . . . . . . . . . . . . . 1 . . . . . . . Haulers 1 | . . . . . . . . . . . . . . . . . . . . . . 1 . . . . . . . . . . . . . Overload 1 | . . . . . . . . . . . . . 1 . . . . . . . . . . . . . . . . . . . . . . Download 1 | . . . . . . . . . . . . . . . 1 . . . . . . . . . . . . . . . . . . . . Recompile 8 | . . . . . . 1 . . . . . . . . 2 . 3 . . . . . . . . . . 2 . . . . . . . Repair Stations 2 | . . . . . . . . 1 . . . . . . 1 . . . . . . . . . . . . . . . . . . . . Patch 2 | . . . . . . . . 1 . . . . . . 1 . . . . . . . . . . . . . . . . . . . . Recycling Units 13 | . 2 . . . 2 . . 4 . . . . 5 . . . . . . . . . . . . . . . . . . . . . . Tunnel 13 | . 2 . . . 2 . . 4 . . . . 5 . . . . . . . . . . . . . . . . . . . . . . Scanalyzers 14 | . . . . . 1 1 . 3 . . . . 1 . 2 . 3 . . . . 3 . . . . . . . . . . . . . Extract 14 | . . . . . 1 1 . 3 . . . . 1 . 2 . 3 . . . . 3 . . . . . . . . . . . . . Garrison Access 1 | . . . . . . . . . . . . . 1 . . . . . . . . . . . . . . . . . . . . . . Jam 1 | . . . . . . . . . . . . . 1 . . . . . . . . . . . . . . . . . . . . . . Data Cores Recovered 17 | . . . . . . . . 4 . . . . 3 . 2 . 2 . . . . 1 1 . . 1 . . 1 . . . 1 1 . Used 7 | . . . . . . . . 2 . . . . 1 . 1 . 1 . . . . . 1 . . 1 . . . . . . . . . Hacking Detections 116 | . 6 1 . . 10 4 . 20 . . . . 11 . 19 . 17 . . . . 10 6 . . . . 9 . . 2 . . 1 . Full Trace Events 21 | . . . . . 2 1 . 3 . . . . 1 . 6 . 1 . . . . . 2 . . . . 3 . . 1 . . 1 . Feedback Events 1 | . . . . . . . . 1 . . . . . . . . . . . . . . . . . . . . . . . . . . . Corruption 1 | . . . . . . . . 1 . . . . . . . . . . . . . . . . . . . . . . . . . . . Feedback Blocked . | . . . . . . . . . . . . . . . . . . . . . . . . . . . . . . . . . . . . Robot Schematics Acquired 5 | . . . . . . . . . . . 3 . . . . . 1 . . . . 1 . . . . . . . . . . . . . Robots Built . | . . . . . . . . . . . . . . . . . . . . . . . . . . . . . . . . . . . . Authchips . | . . . . . . . . . . . . . . . . . . . . . . . . . . . . . . . . . . . . Time . | . . . . . . . . . . . . . . . . . . . . . . . . . . . . . . . . . . . . Total Robot Build Rating . | . . . . . . . . . . . . . . . . . . . . . . . . . . . . . . . . . . . . Part Schematics Acquired 85 | . . . . . 1 10 . 17 . . 12 . 4 . 12 . 14 . . . . 11 . . . . . 4 . . . . . . . Parts Built 14 | . . . . . . . . 4 . . . . 1 . 4 . 3 . . . . . . . . . . 2 . . . . . . . Authchips 6 | . . . . . . . . 1 . . . . . . 2 . 2 . . . . . . . . . . 1 . . . . . . . Time 748 | . . . . . . . . 131 . . . . 102 . 258 . 118 . . . . . . . . . . 139 . . . . . . . Total Part Build Rating 77 | . . . . . . . . 16 . . . . 8 . 22 . 13 . . . . . . . . . . 18 . . . . . . . Part Studies Acquired . | . . . . . . . . . . . . . . . . . . . . . . . . . . . . . . . . . . . . Parts Repaired 1 | . . . . . . . . . . . . . . . . . . . . . . . . . . . . 1 . . . . . . . Time 187 | . . . . . . 136 . . . . . . . . . . . . . . . . . . . . . 51 . . . . . . . Parts Recycled . | . . . . . . . . . . . . . . . . . . . . . . . . . . . . . . . . . . . . Recycled Matter . | . . . . . . . . . . . . . . . . . . . . . . . . . . . . . . . . . . . . Retrieved Matter . | . . . . . . . . . . . . . . . . . . . . . . . . . . . . . . . . . . . . Retrieved Components . | . . . . . . . . . . . . . . . . . . . . . . . . . . . . . . . . . . . . Parts Scanalyzed 8 | . . . . . . 2 . 1 . . . . . . . . . . . . . 2 . . . . . 3 . . . . . . . Part Schematics Acquired 6 | . . . . . . 1 . . . . . . . . . . . . . . . 2 . . . . . 3 . . . . . . . Parts Damaged 4 | . . . . . . 1 . 1 . . . . . . . . . . . . . . . . . . . 2 . . . . . . . Bothacking | -11 -10 -10 -10 -9 -8 -7 -7 -7 -7 -7 -7 -6 -6 -6 -6 -6 -5 -5 -5 -5 -4 -4 -4 -4 -4 -4 -4 -3 -2 -2 -1 -1 -1 -1 -1 ------------ Run | Yrd Mat Min Exi Min Mat Fac Was Fac Low Low Dat Pro Fac Gar Fac Gar Fac Upp Upp War Pro Fac Ext Cet Arc Hub Gar Res Res Qua Acc Gar Acc Com Ac0 Used RIF Installer . | . . . . . . . . . . . . . . . . . . . . . . . . . . . . . . . . . . . . Robots Hacked . | . . . . . . . . . . . . . . . . . . . . . . . . . . . . . . . . . . . . Non-combat . | . . . . . . . . . . . . . . . . . . . . . . . . . . . . . . . . . . . . Combat . | . . . . . . . . . . . . . . . . . . . . . . . . . . . . . . . . . . . . Robot Hacks Applied . | . . . . . . . . . . . . . . . . . . . . . . . . . . . . . . . . . . . . Relay Couplers Released 12 | . . . . . . . . . . . . . . 2 . 1 . . . . . . . . . . 4 . . . . 5 . . . Machine Destruction 10 | . . . . . . . . . . . . . . 2 . . . . . . . . . . . . 4 . . . . 4 . . . Programmers 2 | . . . . . . . . . . . . . . . . 1 . . . . . . . . . . . . . . . 1 . . . Fabnet Peak Effective % . | . . . . . . . . . . . . . . . . . . . . . . . . . . . . . . . . . . . . Robots Rewired 6 | . . . . . . . . . . . . . . . . 2 . . 2 . 2 . . . . . . . . . . . . . . Allies Hacked . | . . . . . . . . . . . . . . . . . . . . . . . . . . . . . . . . . . . . Hacks Repelled . | . . . . . . . . . . . . . . . . . . . . . . . . . . . . . . . . . . . . Allies | -11 -10 -10 -10 -9 -8 -7 -7 -7 -7 -7 -7 -6 -6 -6 -6 -6 -5 -5 -5 -5 -4 -4 -4 -4 -4 -4 -4 -3 -2 -2 -1 -1 -1 -1 -1 -------- Run | Yrd Mat Min Exi Min Mat Fac Was Fac Low Low Dat Pro Fac Gar Fac Gar Fac Upp Upp War Pro Fac Ext Cet Arc Hub Gar Res Res Qua Acc Gar Acc Com Ac0 Total Allies 39 | . 1 . . 2 . . 19 . . . . . . . . 2 1 . 2 . 2 . 7 . . . . 3 . . . . . . . Largest Group 19 | . 1 1 1 3 3 . 19 19 . . . . . . . 1 1 . 2 . 2 2 6 1 1 . . 3 . . . . . . . Highest-Rated Group 475 | . 10 10 10 58 58 . 475 475 . . . . . . . 85 26 . 59 . 96 91 382 159 159 . . 141 . . . . . . . Highest-Rated Ally 159 | . 10 10 10 31 31 . 35 35 . . . . . . . 85 26 . 30 . 49 49 159 159 159 . . 47 . . . . . . . Initial Warlord ECA Mod 13 | . . . . . . . . . . . . . . . 5 5 6 6 6 6 5 5 5 5 5 5 5 10 9 9 8 8 13 13 . Total Orders 4 | . . 2 . 2 . . . . . . . . . . . . . . . . . . . . . . . . . . . . . . . STAY 2 | . . 1 . 1 . . . . . . . . . . . . . . . . . . . . . . . . . . . . . . . FOLLOW 2 | . . 1 . 1 . . . . . . . . . . . . . . . . . . . . . . . . . . . . . . . Ally Attacks 267 | . . . . 6 26 . 51 117 . . . . . . . 8 . . 8 . 7 4 10 6 1 . . 23 . . . . . . . Total Damage 6959 | . . . . 109 290 . 1036 3123 . . . . . . . 617 . . 247 . 264 129 273 202 20 . . 649 . . . . . . . Kills 43 | . . . . 1 2 . 2 31 . . . . . . . . . . . . 1 1 1 2 . . . 2 . . . . . . . Allies Corrupted . | . . . . . . . . . . . . . . . . . . . . . . . . . . . . . . . . . . . . Allies Melted 8 | . . . . . . . . . . . . . . . . . . . . 2 . . . . . . . 1 5 . . . . . . Intel | -11 -10 -10 -10 -9 -8 -7 -7 -7 -7 -7 -7 -6 -6 -6 -6 -6 -5 -5 -5 -5 -4 -4 -4 -4 -4 -4 -4 -3 -2 -2 -1 -1 -1 -1 -1 ------- Run | Yrd Mat Min Exi Min Mat Fac Was Fac Low Low Dat Pro Fac Gar Fac Gar Fac Upp Upp War Pro Fac Ext Cet Arc Hub Gar Res Res Qua Acc Gar Acc Com Ac0 Active Infowar (turns) 13398 | 16 537 877 382 782 287 239 317 1476 297 195 62 321 122 315 868 638 841 163 261 671 283 1044 251 91 32 191 336 1072 431 . . . . . . Optics 2499 | . . . . . . 239 317 1476 297 170 . . . . . . . . . . . . . . . . . . . . . . . . . Sensors 1054 | . . . 172 710 57 . . . . . . 115 . . . . . . . . . . . . . . . . . . . . . . . Terrain 2177 | 11 537 877 382 93 . . . . . . . . . . . . 277 . . . . . . . . . . . . . . . . . . Seismic 1636 | 16 537 874 209 . . . . . . . . . . . . . . . . . . . . . . . . . . . . . . . . T.N.C. 230 | . . . . . 230 . . . . . . . . . . . . . . . . . . . . . . . . . . . . . . Jamming 8669 | . . . . . . 40 273 393 . 25 62 266 122 315 868 638 841 163 261 671 283 1044 251 91 32 191 336 1072 431 . . . . . . Robot Analysis Total 154 | . 3 . . . 1 1 . 1 . . 148 . . . . . . . . . . . . . . . . . . . . . . . . Derelict Logs Recovered 7 | . . 1 . 2 . . . . 2 . . . . . . . . . 1 . 1 . . . . . . . . . . . . . . Drone Launches . | . . . . . . . . . . . . . . . . . . . . . . . . . . . . . . . . . . . . Drone Recoveries . | . . . . . . . . . . . . . . . . . . . . . . . . . . . . . . . . . . . . Exploration | -11 -10 -10 -10 -9 -8 -7 -7 -7 -7 -7 -7 -6 -6 -6 -6 -6 -5 -5 -5 -5 -4 -4 -4 -4 -4 -4 -4 -3 -2 -2 -1 -1 -1 -1 -1 ------------- Run | Yrd Mat Min Exi Min Mat Fac Was Fac Low Low Dat Pro Fac Gar Fac Gar Fac Upp Upp War Pro Fac Ext Cet Arc Hub Gar Res Res Qua Acc Gar Acc Com Ac0 Turns Passed 19418 | 90 537 877 382 785 1384 300 317 1476 297 195 62 321 877 420 990 638 1094 163 261 671 283 1049 251 91 32 191 336 1072 1051 174 134 274 263 1362 718 Spaces Moved 30707 | 55 385 505 308 626 1192 501 422 3010 807 484 122 707 1359 578 1753 929 1833 322 489 879 418 2226 420 155 70 373 458 1648 1617 319 237 427 506 2519 2048 Core 25 | 9 . . . . . . . . . . . . . . 11 . . . . . 1 4 . . . . . . . . . . . . . Treads . | . . . . . . . . . . . . . . . . . . . . . . . . . . . . . . . . . . . . Legs 2081 | 46 385 505 308 626 211 . . . . . . . . . . . . . . . . . . . . . . . . . . . . . . Wheels . | . . . . . . . . . . . . . . . . . . . . . . . . . . . . . . . . . . . . Hover 9173 | . . . . . 179 . . . . . . . . . . . . . . . . . . . . . . 1321 1617 319 237 427 506 2519 2048 Flight 19428 | . . . . . 802 501 422 3010 807 484 122 707 1359 578 1742 929 1833 322 489 879 417 2222 420 155 70 373 458 327 . . . . . . . Fastest Speed 14 | 50 120 120 120 120 32 31 31 31 31 31 31 31 27 27 27 25 25 31 31 24 27 22 25 22 22 22 22 21 35 35 35 35 35 24 14 Average Speed 37 | 108 120 120 120 120 54 32 33 31 31 31 31 31 31 27 27 28 30 31 31 27 27 26 25 24 22 22 22 40 45 35 35 35 35 35 22 Slowest Speed 150 | 120 120 120 120 120 130 34 34 111 31 31 31 31 120 27 100 29 122 31 31 103 150 150 25 25 22 22 22 101 130 35 35 35 35 118 94 Overloaded Moves 1166 | . . . . . . . . . . . . . . . . 28 132 . . . . 14 . 1 70 366 458 6 . . . . . 15 76 Propulsion Burnouts . | . . . . . . . . . . . . . . . . . . . . . . . . . . . . . . . . . . . . Robots Hopped 176 | . . . . . 4 11 . 23 3 . . . 18 . 25 . 25 . . 1 . 49 3 . . 7 . 7 . . . . . . . Potential Cave-ins 15 | . . . . . . . . . . . . . 2 . 3 . . . . 4 . . . . . 3 . . . . . . . . 3 Cave-ins Triggered . | . . . . . . . . . . . . . . . . . . . . . . . . . . . . . . . . . . . . Teleports 3 | . . . . . . . . . . . . . . . . . . . . . . . . . . . . . . 1 . . . 1 1 Exploration Rate (%) 61 | 4 75 74 62 93 88 15 96 78 90 75 79 75 48 54 54 69 56 62 82 88 77 61 72 74 70 52 73 44 44 32 9 38 15 53 79 Regions Visited 35 Branch Regions 18 Pre-discovered Areas 45 | . 2 1 1 1 3 . . 7 1 . 19 . 6 . 2 . . 1 . . . 1 . . . . . . . . . . . . . Known Exits Taken 19 | . . . . 1 1 . . 1 1 1 1 1 1 . 1 . 1 . . 1 1 1 . 1 1 1 . 1 . 1 1 . . . . Unknown Exits Taken 10 | 1 1 1 1 . . . . . . . . . . . . . . 1 1 . . . 1 . . . . . 1 . . . 1 1 . Scrap Searched 20 | . . 1 . 2 . . . . 4 5 . 2 . . . . . 1 3 . 2 . . . . . . . . . . . . . . Spaces Dug 66 | . . 11 . . 2 . . 1 . . . . 7 1 16 . 9 . . . . 7 . . . 6 . . . . . . . 4 2 Terrain Destroyed 1063 | . 13 74 . 5 142 . 3 46 . 5 . 1 36 30 71 17 11 . . 2 . 46 16 6 8 343 . . 5 . 37 . . 6 140 Melee . | . . . . . . . . . . . . . . . . . . . . . . . . . . . . . . . . . . . . Projectile 332 | . . . . 5 10 . 3 2 . . . . 17 5 22 . 11 . . 2 . 46 16 6 8 28 . . 5 . . . . 6 140 AOE 731 | . 13 74 . . 132 . . 44 . 5 . 1 19 25 49 17 . . . . . . . . . 315 . . . . 37 . . . . Terrain Rammed . | . . . . . . . . . . . . . . . . . . . . . . . . . . . . . . . . . . . . Walls Destroyed . | . . . . . . . . . . . . . . . . . . . . . . . . . . . . . . . . . . . . Machines Disabled . | . . . . . . . . . . . . . . . . . . . . . . . . . . . . . . . . . . . . Actions | -11 -10 -10 -10 -9 -8 -7 -7 -7 -7 -7 -7 -6 -6 -6 -6 -6 -5 -5 -5 -5 -4 -4 -4 -4 -4 -4 -4 -3 -2 -2 -1 -1 -1 -1 -1 --------- Run | Yrd Mat Min Exi Min Mat Fac Was Fac Low Low Dat Pro Fac Gar Fac Gar Fac Upp Upp War Pro Fac Ext Cet Arc Hub Gar Res Res Qua Acc Gar Acc Com Ac0 Total 38147 | 70 428 733 321 659 1741 579 541 3412 838 517 132 780 1669 776 2128 1228 2315 384 597 1309 586 2626 561 207 91 486 726 2135 1979 393 307 590 635 3215 2453 Wait 2984 | . 14 168 . 19 242 3 49 215 4 13 1 14 148 77 212 86 116 8 3 268 110 35 37 24 11 50 171 277 249 32 25 73 43 172 15 Move 30330 | 54 384 504 307 625 1182 480 421 2962 800 483 121 706 1324 575 1703 925 1787 321 488 876 417 2133 413 154 69 360 457 1633 1616 318 237 425 505 2518 2047 Hop 159 | . . . . . 4 10 . 22 3 . . . 16 . 25 . 19 . . 1 . 43 3 . . 6 . 7 . . . . . . . Pick Up 135 | 2 1 4 1 . 12 3 3 8 1 . 1 . 2 4 9 6 12 2 1 7 . 11 . 1 1 3 5 8 1 4 2 2 1 8 9 Fast Attach 158 | 6 . 1 3 2 22 6 3 8 . . . 1 2 1 9 1 22 1 . 12 . 8 1 . . 1 . 12 8 1 . . 1 12 14 Attach 49 | 2 . 2 2 . 3 2 . 2 . . . . . 2 1 . 6 . 1 4 . 2 . 1 . 2 . 4 . 1 1 . . 3 8 Detach 17 | . . . 1 1 4 . . . . . . 1 . . . . 3 . . . . . . . . . . 1 . 1 . . . 1 4 Swap 72 | . 4 1 2 . 7 2 6 10 1 2 . 2 3 . 3 3 3 . . . . 4 . . . . . 3 4 . . . 1 9 2 Drop 238 | . . 4 5 1 30 6 5 11 1 . . 1 3 5 14 7 15 2 . 19 . 20 . 1 . 3 5 18 10 4 1 2 3 20 22 Fire 2495 | 6 17 11 . . 163 47 54 100 12 10 4 27 120 49 88 84 223 24 60 91 40 201 46 22 8 44 57 111 52 24 26 55 61 328 230 Melee 30 | . . 23 . . . . . 1 . . 5 . . . . . . . . . . . . . . . . . . . . . . 1 . Ram . | . . . . . . . . . . . . . . . . . . . . . . . . . . . . . . . . . . . . Kick 4 | . . . . 4 . . . . . . . . . . . . . . . . . . . . . . . . . . . . . . . Crush . | . . . . . . . . . . . . . . . . . . . . . . . . . . . . . . . . . . . . Escape Stasis 231 | . . . . . 1 . . 44 . . . . . 42 . 68 1 . . . . 7 30 . . . . . . . . 17 . 21 . Rewire 12 | . . . . . . . . . . . . . . . . . . . 4 . 8 . . . . . . . . . . . . . . Trap . | . . . . . . . . . . . . . . . . . . . . . . . . . . . . . . . . . . . . Miscellaneous 1233 | . 8 15 . 7 71 20 . 29 16 9 . 28 51 21 64 48 108 26 40 31 11 162 31 4 2 17 31 61 39 8 15 16 20 122 102 Route ------- -11/Scrapyard -10/Materials (discovered 4 exits: [*Mat] / *Min x2 / [*Sub]) -10/Mines (discovered 3 exits: [*Mat] / *Exi / [*Sub]) -10/Exiles -9/Mines -8/Materials (discovered 3 exits: *Fac x3) -7/Factory (discovered 3 exits: Fac x3) -7/Waste -7/Factory (discovered 5 exits: *Fac x4 / *Low) -7/Lower Caves -7/Lower Caves (discovered 2 exits: *Fac / *Dat) -7/Data Miner -6/Proximity Caves -6/Factory (discovered 5 exits: *Fac x4 / Gar) -6/Garrison (discovered 3 exits: *Fac x3) -6/Factory (discovered 7 exits: *Fac x4 / Low x2 / Gar) -6/Garrison (discovered 3 exits: *Fac x3) -5/Factory (discovered 6 exits: *Fac x4 / *Upp x2) -5/Upper Caves -5/Upper Caves (discovered 2 exits: *Fac / *War) -5/Warlord -4/Proximity Caves -4/Factory (discovered 8 exits: *Res x3 / *Upp x2 / *Ext x2 / *Arm) -4/Extension (discovered 3 exits: *Res x2 / *Cet) -4/Cetus (discovered 2 exits: *Res / *Arc) -4/Archives (discovered 3 exits: Res / *Hub x2) -4/Hub_04(d) (discovered 2 exits: *Res / Gar) -4/Garrison (discovered 3 exits: *Res x3) -3/Research (discovered 3 exits: *Res x3) -2/Research (discovered 4 exits: *Acc x2 / [*Qua x2]) -2/Quarantine -1/Access -1/Garrison -1/Access -1/Command -1/Access_0 To Epsilon Eridani History --------- Turn | Location | Event 2 | -11/Scrapyard | Upgraded with Power slot (x1) 2 | -11/Scrapyard | Upgraded with Propulsion slot (x1) 2 | -11/Scrapyard | Upgraded with Utility slot (x1) 2 | -11/Scrapyard | Upgraded with Weapon slot (x1) 3 | -11/Scrapyard | Discovered new exit (range 15) 91 | -11/Scrapyard | Entered Materials 155 | -10/Materials | Discovered new exit (range 10) 295 | -10/Materials | Central database locked down 310 | -10/Materials | Build established: Mutant 319 | -10/Materials | Discovered new exit (range 11) 368 | -10/Materials | Discovered new exit (range 8) 513 | -10/Materials | Discovered new exit (range 7) 602 | -10/Materials | Learned location of 2 exits from Subcaves 628 | -10/Materials | Entered Mines 628 | -10/Mines | Accompanied by 1 ally 628 | -10/Mines | Discovered new exit (range 12) 630 | -10/Mines | Reached level 2 637 | -10/Mines | Learned Materials emergency access door positions 652 | -10/Mines | Found a damaged Exp. Sensor Array with a note attached 655 | -10/Mines | Found Prototype Device 665 | -10/Mines | Deemed a non-threat by the Exiles lab entrance 721 | -10/Mines | Discovered new exit (range 14) 787 | -10/Mines | Learned location of Storage (-9) 800 | -10/Mines | Received a Rocket Launcher from a helpful Derelict 837 | -10/Mines | Met a Derelict who couldn't figure out how to use a Trap Extractor 884 | -10/Mines | Found a Scrap Suit stashed away for nefarious purposes 939 | -10/Mines | Assembled infested the area 963 | -10/Mines | Core integrity fell below 50% 990 | -10/Mines | Destroyed 19 combat bots 1270 | -10/Mines | Discovered new exit (range 9) 1328 | -10/Mines | Core integrity fell below 20% 1505 | -10/Mines | Entered Exiles 1505 | -10/Exiles | Accompanied by 1 ally 1535 | -10/Exiles | Met 8R-AWN 1555 | -10/Exiles | Met EX-HEX 1601 | -10/Exiles | Met EX-DEC 1607 | -10/Exiles | Learned location of Zion (-6) 1627 | -10/Exiles | Met EX-BIN 1649 | -10/Exiles | Reached level 3 1649 | -10/Exiles | Aligned with FarCom system 1651 | -10/Exiles | Given EX-Vault access code 1678 | -10/Exiles | Opened EX-Vault 1689 | -10/Exiles | Found AWS/Thermal 1712 | -10/Exiles | Identified Exp. Sensor Array 1752 | -10/Exiles | Warned to stay clear of 0b10 Research branches 1876 | -10/Exiles | Discovered new exit (range 10) 1887 | -10/Exiles | Left Exiles lab with AWS/Thermal 1887 | -10/Exiles | Entered Mines 1887 | -9/Mines | Accompanied by 1 ally 2022 | -9/Mines | Build established: Skirmisher 2082 | -9/Mines | Learned 2 Materials zone layouts 2124 | -9/Mines | Discovered new exit (range 7) 2131 | -9/Mines | Identified exit to Materials 2211 | -9/Mines | Joined a pair of Derelicts in attacking an 0b10 outpost 2672 | -9/Mines | Entered Materials 2672 | -8/Materials | Accompanied by 3 allies 2673 | -8/Materials | Identified exit to Factory 2673 | -8/Materials | Core integrity fell below 50% 2674 | -8/Materials | Reached level 4 2677 | -8/Materials | Led the pair of lost Derelicts to an unsafe place 2704 | -8/Materials | Reached level 5 2766 | -8/Materials | Core integrity fell below 20% 2767 | -8/Materials | AWS/Thermal suddenly broke down 2863 | -8/Materials | Reached level 6 3036 | -8/Materials | Build established: Mutant 3118 | -8/Materials | Central database locked down 3164 | -8/Materials | Reached level 7 3246 | -8/Materials | Upgraded with Utility slot (x1) 3440 | -8/Materials | Upgraded with Propulsion slot (x1) 3561 | -8/Materials | Reached level 8 3587 | -8/Materials | Learned location of 3 exits from Factory 3637 | -8/Materials | Learned location of 1 exit from Storage 3747 | -8/Materials | Learned location of 1 exit from Extension 3799 | -8/Materials | Learned 2 Lower Caves zone layouts 3869 | -8/Materials | Reached level 9 3992 | -8/Materials | Upgraded with Utility slot (x1) 4056 | -8/Materials | Entered Factory 4057 | -7/Factory | Identified exit to Factory 4058 | -7/Factory | Reached level 10 4068 | -7/Factory | Destroyed 8 combat bots 4077 | -7/Factory | Reached level 11 4078 | -7/Factory | Core integrity fell below 50% 4133 | -7/Factory | Garrison activated, responded to threat 4260 | -7/Factory | Reached level 12 4261 | -7/Factory | Upgraded with Propulsion slot (x1) 4314 | -7/Factory | Upgraded with Utility slot (x1) 4356 | -7/Factory | Sucked down chute 4356 | -7/Factory | Entered Waste 4375 | -7/Waste | Spotted C-40 Crusher 4446 | -7/Waste | Spotted C-40 Crusher 4456 | -7/Waste | Destroyed C-40 Crusher 4465 | -7/Waste | Spotted C-40 Crusher 4477 | -7/Waste | Destroyed C-40 Crusher 4484 | -7/Waste | Spotted C-40 Crusher 4495 | -7/Waste | Spotted C-40 Crusher 4526 | -7/Waste | Destroyed C-40 Crusher 4547 | -7/Waste | Warlord forces began an assault 4554 | -7/Waste | Allies destroyed C-40 Crusher 4556 | -7/Waste | Spotted C-40 Crusher 4566 | -7/Waste | Allies destroyed C-40 Crusher 4603 | -7/Waste | Destroyed C-40 Crusher 4606 | -7/Waste | Discovered new exit (range 21) 4673 | -7/Waste | Entered Factory 4673 | -7/Factory | Accompanied by 19 allies 4704 | -7/Factory | Discovered new exit (range 17) 4730 | -7/Factory | Build established: Hacker-Mutant 4739 | -7/Factory | Lost 5 allies 4826 | -7/Factory | Reached level 13 4852 | -7/Factory | Reached level 14 4942 | -7/Factory | Upgraded with Utility slot (x1) 4946 | -7/Factory | Discovered exit to Factory (range 11) 4963 | -7/Factory | Discovered exit to Factory (range 6) 5033 | -7/Factory | Reached level 15 5036 | -7/Factory | Discovered exit to Factory (range 22) 5040 | -7/Factory | Build established: Hacker-Sprinter 5139 | -7/Factory | Learned location of Warlord (-5) 5183 | -7/Factory | Learned location of 1 exit from Proximity Caves 5253 | -7/Factory | Learned location of Lower Caves (-7) 5258 | -7/Factory | Learned 2 Extension zone layouts 5268 | -7/Factory | Loaded intel: 26 terminal locations 5286 | -7/Factory | Learned location of 2 exits from Archives 5314 | -7/Factory | Learned 4 Lower Caves zone layouts 5473 | -7/Factory | First assault squad dispatched 5495 | -7/Factory | Upgraded with Weapon slot (x2) 5629 | -7/Factory | Reached level 16 5630 | -7/Factory | Upgraded with Utility slot (x1) 5903 | -7/Factory | Fabricated Imp. Terrain Scanner? 5968 | -7/Factory | Fabricated Adv. Signal Interpreter (x2) 6149 | -7/Factory | Identified exit to Lower Caves 6149 | -7/Factory | Entered Lower Caves 6151 | -7/Lower Caves | Ambushed by research squad 6156 | -7/Lower Caves | Learned Factory terminal intel 6351 | -7/Lower Caves | Attracted the attention of an 0b10 checkpoint 6370 | -7/Lower Caves | Spotted B-75 Beast 6394 | -7/Lower Caves | Discovered new exit (range 4) 6395 | -7/Lower Caves | Identified exit to Lower Caves 6398 | -7/Lower Caves | Encountered a Warlord checkpoint 6446 | -7/Lower Caves | Entered another Lower Caves area 6446 | -7/Lower Caves | Discovered exit to Factory (range 22) 6458 | -7/Lower Caves | Spotted B-75 Beast 6590 | -7/Lower Caves | Encountered a Warlord checkpoint 6602 | -7/Lower Caves | Discovered new exit (range 6) 6603 | -7/Lower Caves | Identified exit to Data Miner 6641 | -7/Lower Caves | Entered Data Miner 6641 | -7/Data Miner | Discovered new exit (range 6) 6643 | -7/Data Miner | Identified exit to Proximity Caves 6647 | -7/Data Miner | Met Data Miner 6654 | -7/Data Miner | Learned location of Section 7 (-2) 6654 | -7/Data Miner | Acquired the access code to Warlord's prototype stash 6658 | -7/Data Miner | Received God Mode back door access code from Data Miner 6668 | -7/Data Miner | Destroyed Data Miner 6670 | -7/Data Miner | Reached level 17 6670 | -7/Data Miner | Interfaced with the Data Conduit 6702 | -7/Data Miner | Core integrity fell below 20% 6703 | -7/Data Miner | Entered Proximity Caves 6842 | -6/Proximity Caves | Attracted the attention of an 0b10 base 6869 | -6/Proximity Caves | Learned Factory stockpile data 6869 | -6/Proximity Caves | Learned Extension stockpile data 7024 | -6/Proximity Caves | Entered Factory 7026 | -6/Factory | Loaded intel: 246 machine locations 7026 | -6/Factory | Reached level 18 7027 | -6/Factory | Loaded intel: 26 terminal locations 7107 | -6/Factory | Reached level 19 7181 | -6/Factory | Core integrity fell below 50% 7315 | -6/Factory | Discovered new exit (range 17) 7368 | -6/Factory | Fabricated Imp. Matter Neutralizer (x1) 7374 | -6/Factory | First assault squad dispatched 7401 | -6/Factory | Spotted B-75 Beast 7719 | -6/Factory | Identified exit to Factory 7750 | -6/Factory | Reached level 20 7801 | -6/Factory | Upgraded with Propulsion slot (x1) 7817 | -6/Factory | Intercept squad dispatched 7819 | -6/Factory | Spotted Tracker 7828 | -6/Factory | Destroyed Tracker 7837 | -6/Factory | Spotted Combat Programmer 7842 | -6/Factory | Destroyed Combat Programmer 7895 | -6/Factory | Identified exit to Garrison 7901 | -6/Factory | Entered Garrison 7902 | -6/Garrison | Loaded intel: 32 machine locations 7909 | -6/Garrison | Spotted B-75 Beast 7920 | -6/Garrison | Spotted B-75 Beast 7922 | -6/Garrison | Triggered checkpoint 7928 | -6/Garrison | Learned Factory security intel 7930 | -6/Garrison | Discovered new exit (range 12) 8002 | -6/Garrison | Destroyed B-75 Beast 8151 | -6/Garrison | Triggered checkpoint 8227 | -6/Garrison | Discovered new exit (range 4) 8229 | -6/Garrison | Attempted to access garrison exit controls, blocked by remote lockdown 8255 | -6/Garrison | Discovered new exit (range 8) 8258 | -6/Garrison | Attempted to access garrison exit controls, blocked by remote lockdown 8310 | -6/Garrison | Garrison Relay disabled 8321 | -6/Garrison | Entered Factory 8323 | -6/Factory | Loaded intel: 248 machine locations 8338 | -6/Factory | Allied Derelicts emerged from ambush trap array 8415 | -6/Factory | Discovered exit to Factory (range 11) 8511 | -6/Factory | Discovered exit to Factory (range 11) 8525 | -6/Factory | Spotted B-75 Beast 8782 | -6/Factory | Learned location of 2 exits from Archives 8836 | -6/Factory | Fabricated Exp. Targeting Computer (x1) 8840 | -6/Factory | Learned 2 Proximity Caves zone layouts 8930 | -6/Factory | Learned Hub_04(d) trap positions 8992 | -6/Factory | Intercept squad dispatched 8998 | -6/Factory | Identified exit to Lower Caves 9008 | -6/Factory | Spotted Tracker 9008 | -6/Factory | Reached level 21 9008 | -6/Factory | Destroyed Tracker 9020 | -6/Factory | Learned Extension stockpile data 9054 | -6/Factory | Spotted Combat Programmer 9065 | -6/Factory | Destroyed Combat Programmer 9080 | -6/Factory | Discovered exit to Factory (range 10) 9273 | -6/Factory | Fabricated Exp. Targeting Computer (x1) 9292 | -6/Factory | Fabricated Field Propulsion Drive (x2) 9311 | -6/Factory | Identified exit to Garrison 9311 | -6/Factory | Entered Garrison 9312 | -6/Garrison | Loaded intel: 34 machine locations 9370 | -6/Garrison | Learned Factory security intel 9388 | -6/Garrison | Triggered checkpoint 9452 | -6/Garrison | Spotted B-75 Beast 9485 | -6/Garrison | Destroyed B-75 Beast 9506 | -6/Garrison | Discovered exit to Factory (range 15) 9567 | -6/Garrison | Triggered checkpoint 9665 | -6/Garrison | Discovered exit to Factory (range 11) 9668 | -6/Garrison | Attempted to access garrison exit controls, blocked by remote lockdown 9671 | -6/Garrison | Triggered checkpoint 9711 | -6/Garrison | Spotted B-75 Beast 9712 | -6/Garrison | Spotted B-86 Titan 9716 | -6/Garrison | Triggered checkpoint 9757 | -6/Garrison | Triggered checkpoint 9798 | -6/Garrison | Rewired B-75 Beast 9800 | -6/Garrison | Rewired B-75 Beast 9845 | -6/Garrison | Discovered exit to Factory (range 8) 9847 | -6/Garrison | Attempted to access garrison exit controls, blocked by remote lockdown 9877 | -6/Garrison | Destroyed B-86 Titan 9903 | -6/Garrison | Destroyed B-75 Beast 9917 | -6/Garrison | Found Quantum Capacitor 9949 | -6/Garrison | Entered Factory 9950 | -5/Factory | Identified exit to Upper Caves 9952 | -5/Factory | Loaded intel: 245 machine locations 9998 | -5/Factory | Reached level 22 9999 | -5/Factory | Upgraded with Utility slot (x1) 10079 | -5/Factory | Discovered new exit (range 5) 10106 | -5/Factory | Destroyed 9 combat bots 10128 | -5/Factory | Discovered new exit (range 3) 10129 | -5/Factory | Discovered new exit (range 10) 10210 | -5/Factory | Unchained authorized (6S-H0T) 10250 | -5/Factory | Exiles provided nearest exit location to -5/Upper Caves 10287 | -5/Factory | Learned 4 Research zone layouts 10340 | -5/Factory | Core integrity fell below 50% 10441 | -5/Factory | Reached level 23 10465 | -5/Factory | Discovered new exit (range 14) 10466 | -5/Factory | Destroyed 9 combat bots 10516 | -5/Factory | Intercept squad dispatched 10546 | -5/Factory | Spotted Tracker 10550 | -5/Factory | Destroyed Tracker 10576 | -5/Factory | Spotted Combat Programmer 10587 | -5/Factory | Destroyed Combat Programmer 10606 | -5/Factory | Core integrity fell below 20% 10609 | -5/Factory | Fabricated Exp. Targeting Computer? 10635 | -5/Factory | Found Prototype Energy Gun 10635 | -5/Factory | Identified Immobilizer 10779 | -5/Factory | Learned Quarantine terminal intel 10808 | -5/Factory | Learned Testing stockpile data 10849 | -5/Factory | First assault squad dispatched 10859 | -5/Factory | Learned 2 Upper Caves zone layouts 10890 | -5/Factory | Learned location of 2 exits from Proximity Caves 10916 | -5/Factory | Spotted B-75 Beast 10959 | -5/Factory | Destroyed B-75 Beast 10968 | -5/Factory | Fabricated System Restoration Module (x2) 10979 | -5/Factory | High security lockdown imminent 11027 | -5/Factory | Destroyed 7 combat bots 11043 | -5/Factory | Entered Upper Caves 11059 | -5/Upper Caves | Met a Warlord Commander 11059 | -5/Upper Caves | Encountered a Warlord checkpoint 11061 | -5/Upper Caves | Warlord Commander delivered Encrypted Comm Array 11062 | -5/Upper Caves | Found Encrypted Comm Array 11143 | -5/Upper Caves | Spotted B-75 Beast 11183 | -5/Upper Caves | Discovered new exit (range 4) 11206 | -5/Upper Caves | Entered another Upper Caves area 11208 | -5/Upper Caves | Reached level 24 11232 | -5/Upper Caves | Destroyed 9 combat bots 11233 | -5/Upper Caves | Discovered new exit (range 7) 11250 | -5/Upper Caves | Attracted the attention of an 0b10 outpost 11307 | -5/Upper Caves | Destroyed 7 combat bots 11339 | -5/Upper Caves | Attracted the attention of an 0b10 checkpoint 11391 | -5/Upper Caves | Learned Factory terminal intel 11432 | -5/Upper Caves | Destroyed 7 combat bots 11446 | -5/Upper Caves | Discovered new exit (range 9) 11467 | -5/Upper Caves | Entered Warlord 11468 | -5/Warlord | Identified exit to Proximity Caves 11561 | -5/Warlord | Met Warlord 11576 | -5/Warlord | Opened Warlord's prototype stash 11582 | -5/Warlord | Upgraded with Propulsion slot (x1) 11586 | -5/Warlord | Warlord's base attacked by MAIN.C 11586 | -5/Warlord | Found System Purifier 11589 | -5/Warlord | Found Prototype Hackware 11630 | -5/Warlord | Found Prototype Energy Gun 11630 | -5/Warlord | Identified Vortex Shotgun 11936 | -5/Warlord | Warlord forces counterattacked 11981 | -5/Warlord | Spotted Executioner 11985 | -5/Warlord | Spotted Striker 11988 | -5/Warlord | Spotted Striker 11991 | -5/Warlord | P-80 Master assimilated allied IE-7CM(g) 11997 | -5/Warlord | Destroyed Executioner 12031 | -5/Warlord | Found Corrupted Exp. Core Analyzer 12033 | -5/Warlord | Lost 8 allies 12035 | -5/Warlord | Spotted Striker 12039 | -5/Warlord | Spotted Striker 12042 | -5/Warlord | Destroyed Striker 12048 | -5/Warlord | Destroyed Striker 12051 | -5/Warlord | Spotted Executioner 12063 | -5/Warlord | Destroyed Executioner 12078 | -5/Warlord | Found Exp. Core Analyzer 12081 | -5/Warlord | Found Exp. Core Analyzer 12086 | -5/Warlord | Spotted Executioner 12108 | -5/Warlord | Spotted Striker 12138 | -5/Warlord | Entered Proximity Caves 12139 | -4/Proximity Caves | Identified exit to Factory 12146 | -4/Proximity Caves | Lost 10 allies 12189 | -4/Proximity Caves | Reached level 25 12272 | -4/Proximity Caves | Learned Research interactive machine intel 12287 | -4/Proximity Caves | Destroyed 11 combat bots 12421 | -4/Proximity Caves | Entered Factory 12421 | -4/Factory | Accompanied by 2 allies 12422 | -4/Factory | Identified exit to Extension 12423 | -4/Factory | Loaded intel: 267 machine locations 12424 | -4/Factory | Loaded intel: 28 terminal locations 12426 | -4/Factory | Identified exit to Upper Caves 12426 | -4/Factory | Identified exit to Armory 12495 | -4/Factory | Spotted B-86 Titan 12500 | -4/Factory | Destroyed B-86 Titan 12556 | -4/Factory | Learned location of 1 exit from Proximity Caves 12584 | -4/Factory | Found Quantum Capacitor 12622 | -4/Factory | Learned location of 1 exit from Research 12631 | -4/Factory | Unchained authorized (6S-H0T) 12643 | -4/Factory | Learned location of 1 exit from Proximity Caves 12656 | -4/Factory | Learned Research scanalyzer intel 12658 | -4/Factory | Identified exit to Research 12669 | -4/Factory | Learned Research trap positions 12692 | -4/Factory | Reached level 26 12718 | -4/Factory | Core integrity fell below 50% 12780 | -4/Factory | Intercept squad dispatched 12786 | -4/Factory | Spotted Tracker 12796 | -4/Factory | Core integrity fell below 20% 12800 | -4/Factory | Destroyed Tracker 12817 | -4/Factory | Spotted Combat Programmer 12830 | -4/Factory | Destroyed Combat Programmer 12921 | -4/Factory | First assault squad dispatched 12988 | -4/Factory | Upgraded with Weapon slot (x1) 13006 | -4/Factory | Destroyed 6S-H0T 13048 | -4/Factory | Destroyed 8 combat bots 13055 | -4/Factory | Intercept squad dispatched 13059 | -4/Factory | Discovered exit to Research (range 17) 13066 | -4/Factory | Spotted Tracker 13068 | -4/Factory | Destroyed Tracker 13069 | -4/Factory | Spotted Combat Programmer 13073 | -4/Factory | Destroyed Combat Programmer 13101 | -4/Factory | Identified Ghost Barrier 13108 | -4/Factory | Destroyed 11 combat bots 13133 | -4/Factory | Spotted B-86 Titan 13146 | -4/Factory | Build established: Scavenger-Sprinter 13224 | -4/Factory | Intercept squad dispatched 13239 | -4/Factory | Spotted Tracker 13240 | -4/Factory | Destroyed Tracker 13257 | -4/Factory | Spotted Combat Programmer 13264 | -4/Factory | Destroyed Combat Programmer 13264 | -4/Factory | Reached level 27 13309 | -4/Factory | Destroyed B-86 Titan 13470 | -4/Factory | Entered Extension 13474 | -4/Extension | Loaded intel: 37 machine locations 13524 | -4/Extension | Rescued A7 13534 | -4/Extension | Rescued a captive Derelict 13563 | -4/Extension | Rescued a captive Derelict 13563 | -4/Extension | Rescued a captive Derelict 13569 | -4/Extension | Rescued a captive Derelict 13570 | -4/Extension | Rescued a captive Derelict 13587 | -4/Extension | Spotted B-86 Titan 13591 | -4/Extension | Destroyed B-86 Titan 13592 | -4/Extension | Spotted B-86 Titan 13603 | -4/Extension | Destroyed B-86 Titan 13635 | -4/Extension | Destroyed 15 combat bots 13637 | -4/Extension | Rescued a captive Derelict 13651 | -4/Extension | Rescued a captive Derelict 13652 | -4/Extension | Rescued a captive Derelict 13657 | -4/Extension | Rescued a captive Derelict 13681 | -4/Extension | Discovered exit to Research (range 10) 13682 | -4/Extension | Discovered new exit (range 6) 13720 | -4/Extension | First assault squad dispatched 13721 | -4/Extension | Entered Cetus 13721 | -4/Cetus | Accompanied by 1 ally (A7) 13722 | -4/Cetus | Identified exit to Archives 13723 | -4/Cetus | Loaded intel: 24 machine locations 13725 | -4/Cetus | Spotted Cetus Guard 13725 | -4/Cetus | Spotted Cetus Guard 13726 | -4/Cetus | Acquired a Cetus Manufacturing Module code from A7 13726 | -4/Cetus | Spotted Cetus Guard 13727 | -4/Cetus | Destroyed Cetus Guard 13729 | -4/Cetus | Destroyed Cetus Guard 13731 | -4/Cetus | Spotted Cetus Guard 13733 | -4/Cetus | Destroyed Cetus Guard 13738 | -4/Cetus | Allies destroyed Cetus Guard 13760 | -4/Cetus | Escorted A7 to Cetus Mainframe 13768 | -4/Cetus | Spotted Cetus Guard 13768 | -4/Cetus | Spotted Cetus Guard 13768 | -4/Cetus | Spotted Cetus Guard 13770 | -4/Cetus | Destroyed Cetus Guard 13771 | -4/Cetus | Spotted Cetus Guard 13773 | -4/Cetus | Destroyed Cetus Guard 13775 | -4/Cetus | Destroyed Cetus Guard 13776 | -4/Cetus | Destroyed Cetus Guard 13777 | -4/Cetus | Discovered exit to Research (range 17) 13780 | -4/Cetus | Met Revision 17 13780 | -4/Cetus | Murdered Revision 17 13810 | -4/Cetus | Upgraded with Weapon slot (x1) 13812 | -4/Cetus | Entered Archives 13812 | -4/Archives | Accompanied by 1 ally (A7) 13813 | -4/Archives | Identified exit to Hub_04(d) 13814 | -4/Archives | Reached level 28 13815 | -4/Archives | Loaded intel: 8 machine locations 13817 | -4/Archives | Received a hacking code to weaken MAIN.C 13844 | -4/Archives | Entered Hub_04(d) 13845 | -4/Hub_04(d) | Loaded intel: 9 trap records 13846 | -4/Hub_04(d) | Loaded intel: 96 machine locations 13873 | -4/Hub_04(d) | Discovered exit to Research (range 13) 13878 | -4/Hub_04(d) | Spotted B-86 Titan 13894 | -4/Hub_04(d) | Destroyed 9 combat bots 13927 | -4/Hub_04(d) | Destroyed B-86 Titan 13942 | -4/Hub_04(d) | Network Hub disabled 13976 | -4/Hub_04(d) | Network Hub disabled 13980 | -4/Hub_04(d) | Spotted Lightning 13985 | -4/Hub_04(d) | Spotted Lightning 13986 | -4/Hub_04(d) | Destroyed Lightning 13987 | -4/Hub_04(d) | Spotted Lightning 13993 | -4/Hub_04(d) | Destroyed Lightning 13997 | -4/Hub_04(d) | Destroyed Lightning 14005 | -4/Hub_04(d) | System corruption reached 10% 14035 | -4/Hub_04(d) | Identified exit to Garrison 14035 | -4/Hub_04(d) | Entered Garrison 14036 | -4/Garrison | Loaded intel: 33 machine locations 14106 | -4/Garrison | Triggered checkpoint 14118 | -4/Garrison | Discovered exit to Research (range 32) 14118 | -4/Garrison | Discovered exit to Research (range 70) 14118 | -4/Garrison | Discovered exit to Research (range 65) 14123 | -4/Garrison | Garrison Relay disabled 14141 | -4/Garrison | Spotted B-86 Titan 14159 | -4/Garrison | Destroyed B-86 Titan 14163 | -4/Garrison | Triggered checkpoint 14185 | -4/Garrison | Triggered checkpoint 14192 | -4/Garrison | Garrison Relay disabled 14195 | -4/Garrison | Triggered checkpoint 14216 | -4/Garrison | Destroyed 8 combat bots 14299 | -4/Garrison | Triggered checkpoint 14320 | -4/Garrison | Destroyed 8 combat bots 14331 | -4/Garrison | Triggered checkpoint 14354 | -4/Garrison | Spotted Striker 14355 | -4/Garrison | Spotted Striker 14357 | -4/Garrison | Destroyed Striker 14361 | -4/Garrison | Destroyed Striker 14371 | -4/Garrison | Entered Research 14372 | -3/Research | Identified exit to Research 14373 | -3/Research | Reached level 29 14374 | -3/Research | Loaded intel: 110 trap records 14375 | -3/Research | Loaded intel: 115 machine locations 14376 | -3/Research | Loaded intel: 46 interactive machine locations 14377 | -3/Research | Loaded intel: 6 scanalyzer locations 14382 | -3/Research | Destroyed 9 combat bots 14464 | -3/Research | Spotted B-86 Titan 14481 | -3/Research | Destroyed B-86 Titan 14482 | -3/Research | Intercept squad dispatched 14507 | -3/Research | Found Exp. Hacking Suite 14515 | -3/Research | Spotted Tracker 14517 | -3/Research | Destroyed Tracker 14534 | -3/Research | Spotted Combat Programmer 14535 | -3/Research | Destroyed Combat Programmer 14669 | -3/Research | Spotted B-86 Titan 14678 | -3/Research | Destroyed B-86 Titan 14783 | -3/Research | Build established: Scavenger-Executioner 14825 | -3/Research | Fabricated Cmb. Linear Gravjet? 14899 | -3/Research | Destroyed 7 combat bots 15008 | -3/Research | Reached level 30 15027 | -3/Research | Discovered exit to Research (range 10) 15117 | -3/Research | Intercept squad dispatched 15124 | -3/Research | Spotted Tracker 15125 | -3/Research | Destroyed Tracker 15152 | -3/Research | Discovered exit to Research (range 5) 15174 | -3/Research | Spotted Combat Programmer 15174 | -3/Research | Garrison activated, responded to threat 15175 | -3/Research | Destroyed Combat Programmer 15217 | -3/Research | Destroyed 11 combat bots 15273 | -3/Research | Repaired Broken Cmb. Linear Gravjet 15300 | -3/Research | High security lockdown imminent 15380 | -3/Research | High security lockdown engaged 15443 | -3/Research | Entered another Research area 15443 | -2/Research | Warlord forces began assault on 0b10 15444 | -2/Research | Loaded intel: 111 machine locations 15445 | -2/Research | Reached level 31 15468 | -2/Research | Distinguished unit "Department No. 42" dispatched to help 15471 | -2/Research | Destroyed 10 combat bots 15553 | -2/Research | Research machine network offline 15717 | -2/Research | Met up with Warlord 15732 | -2/Research | Upgraded with Power slot (x1) 15732 | -2/Research | Upgraded with Utility slot (x1) 15876 | -2/Research | Destroyed 9 combat bots 15907 | -2/Research | Discovered new exit (range 7) 15913 | -2/Research | Spotted Striker 15914 | -2/Research | Spotted B-90 Cyclops 15915 | -2/Research | Discovered new exit (range 15) 15919 | -2/Research | Destroyed Striker 15919 | -2/Research | Spotted Tracker 15920 | -2/Research | Spotted Tracker 15920 | -2/Research | Destroyed Tracker 15926 | -2/Research | Destroyed Tracker 15933 | -2/Research | Reached level 32 15936 | -2/Research | Borebot progress halted 15954 | -2/Research | Destroyed 7 combat bots 16003 | -2/Research | Spotted Executioner 16003 | -2/Research | Spotted Striker 16011 | -2/Research | Destroyed Striker 16013 | -2/Research | Destroyed Executioner 16037 | -2/Research | Spotted Executioner 16039 | -2/Research | Spotted Executioner 16042 | -2/Research | Destroyed Executioner 16045 | -2/Research | Destroyed Executioner 16076 | -2/Research | Found Adv. Kinecellerator 16084 | -2/Research | Lost 9 allies 16214 | -2/Research | Discovered new exit (range 11) 16305 | -2/Research | Borebot progress halted 16363 | -2/Research | Discovered new exit (range 15) 16388 | -2/Research | Found Exp. Signal Interpreter 16401 | -2/Research | Identified exit to Access 16494 | -2/Research | Entered Quarantine 16495 | -2/Quarantine | Maximum security lockdown engaged 16495 | -2/Quarantine | Loaded intel: 109 machine locations 16496 | -2/Quarantine | Loaded intel: 15 terminal locations 16503 | -2/Quarantine | Spotted Alpha 7 16504 | -2/Quarantine | Destroyed Alpha 7 16517 | -2/Quarantine | Found Alien Artifact 16517 | -2/Quarantine | Identified Transdimensional Reconstructor 16517 | -2/Quarantine | Warped through subspace 16536 | -2/Quarantine | Found Transdimensional Reconstructor 16624 | -2/Quarantine | Found Alien Artifact 16627 | -2/Quarantine | Discovered exit to Access (range 9) 16668 | -2/Quarantine | Entered Access 16669 | -1/Access | Loaded intel: 143 machine locations 16670 | -1/Access | Reached level 33 16673 | -1/Access | Energy Cycler disabled 16676 | -1/Access | Destroyed 7 combat bots 16722 | -1/Access | Reached level 34 16742 | -1/Access | Upgraded with Utility slot (x1) 16799 | -1/Access | High security lockdown imminent 16802 | -1/Access | Identified exit to Garrison 16802 | -1/Access | Entered Garrison 16803 | -1/Garrison | Loaded intel: 38 machine locations 16813 | -1/Garrison | Destroyed 19 combat bots 16824 | -1/Garrison | Spotted B-99 Colossus 16828 | -1/Garrison | Triggered checkpoint 16832 | -1/Garrison | Destroyed B-99 Colossus 16849 | -1/Garrison | Reached level 35 16932 | -1/Garrison | Discovered new exit (range 10) 16964 | -1/Garrison | Garrison Relay disabled 16969 | -1/Garrison | Destroyed 34 combat bots 16986 | -1/Garrison | Garrison Relay disabled 16992 | -1/Garrison | Triggered checkpoint 17006 | -1/Garrison | Triggered checkpoint 17024 | -1/Garrison | Garrison Relay disabled 17076 | -1/Garrison | Entered Access 17077 | -1/Access | Loaded intel: 121 machine locations 17097 | -1/Access | Energy Cycler disabled 17122 | -1/Access | Spotted B-99 Colossus 17127 | -1/Access | Destroyed B-99 Colossus 17173 | -1/Access | Reached level 36 17202 | -1/Access | High security lockdown imminent 17229 | -1/Access | Intercept squad dispatched 17241 | -1/Access | Spotted Tracker 17242 | -1/Access | Destroyed Tracker 17242 | -1/Access | Spotted Tracker 17243 | -1/Access | Destroyed Tracker 17252 | -1/Access | Found Exp. Phase Shifter 17264 | -1/Access | Spotted Combat Programmer 17266 | -1/Access | Spotted Combat Programmer 17267 | -1/Access | Destroyed Combat Programmer 17271 | -1/Access | Destroyed Combat Programmer 17282 | -1/Access | High security lockdown engaged 17316 | -1/Access | Garrison activated, responded to threat 17337 | -1/Access | Discovered new exit (range 8) 17339 | -1/Access | Entered Command 17340 | -1/Command | Loaded intel: 67 machine locations 17342 | -1/Command | Destroyed 7 combat bots 17344 | -1/Command | Spotted B-99 Colossus 17345 | -1/Command | Destroyed B-99 Colossus 17411 | -1/Command | Destroyed 10 combat bots 17412 | -1/Command | Disengaged cave seal 17423 | -1/Command | Welcomed Warlord to Command 17423 | -1/Command | Reached level 37 17457 | -1/Command | High security lockdown imminent 17537 | -1/Command | High security lockdown engaged 17582 | -1/Command | Spotted B-99 Colossus 17584 | -1/Command | Destroyed B-99 Colossus 17597 | -1/Command | Spotted Executioner 17597 | -1/Command | Spotted Executioner 17630 | -1/Command | Destroyed Executioner 17631 | -1/Command | Destroyed Executioner 17658 | -1/Command | Destroyed 14 combat bots 17688 | -1/Command | Spotted M Guard 17688 | -1/Command | Spotted M Guard 17688 | -1/Command | Spotted Combat Programmer 17692 | -1/Command | Spotted Combat Programmer 17705 | -1/Command | Destroyed Combat Programmer 17712 | -1/Command | Destroyed Combat Programmer 17715 | -1/Command | Destroyed M Guard 17716 | -1/Command | Core integrity fell below 50% 17720 | -1/Command | Found Zero-point Reactor 17726 | -1/Command | Destroyed M Guard 17726 | -1/Command | All MAIN.C guards destroyed 17730 | -1/Command | Warlord commented on Warlord statues 17766 | -1/Command | Spotted Investigator 17785 | -1/Command | Destroyed Investigator 17810 | -1/Command | Destroyed 10 combat bots 17816 | -1/Command | Found Prototype Launcher 17816 | -1/Command | Identified Containment Facilitator 17820 | -1/Command | Lost 6 allies 17867 | -1/Command | Spotted Striker 17869 | -1/Command | Destroyed Striker 17881 | -1/Command | Spotted Executioner 17881 | -1/Command | Spotted Executioner 17881 | -1/Command | Spotted Executioner 17881 | -1/Command | Spotted Executioner 17881 | -1/Command | Spotted Striker 17884 | -1/Command | Destroyed Striker 17888 | -1/Command | Spotted Executioner 17890 | -1/Command | Spotted Striker 17898 | -1/Command | Destroyed Executioner 17899 | -1/Command | Destroyed Executioner 17906 | -1/Command | Destroyed Executioner 17907 | -1/Command | Destroyed Executioner 17908 | -1/Command | Attacked by Warlord forces 17908 | -1/Command | Destroyed Executioner 17910 | -1/Command | P-80 Master assimilated allied IN-VQJ(m) 17912 | -1/Command | Destroyed Striker 17914 | -1/Command | Warlord destroyed during the assault 17914 | -1/Command | Destroyed Warlord 17938 | -1/Command | Lost 4 allies 17946 | -1/Command | Destroyed 24 combat bots 18059 | -1/Command | Found Prototype Ballistic Cannon 18059 | -1/Command | Identified Blast Cannon 18081 | -1/Command | Destroyed Striker 18101 | -1/Command | Spotted Executioner 18102 | -1/Command | Spotted Striker 18102 | -1/Command | Spotted Striker 18111 | -1/Command | Destroyed Striker 18123 | -1/Command | Destroyed Executioner 18129 | -1/Command | Destroyed Striker 18129 | -1/Command | Spotted Striker 18130 | -1/Command | Destroyed Striker 18140 | -1/Command | Spotted Investigator 18140 | -1/Command | Scanned by Researcher 18140 | -1/Command | Destroyed Investigator 18161 | -1/Command | Spotted Striker 18161 | -1/Command | Spotted Striker 18164 | -1/Command | Destroyed Striker 18166 | -1/Command | Spotted Striker 18167 | -1/Command | Destroyed Striker 18172 | -1/Command | Destroyed Striker 18200 | -1/Command | Destroyed 30 combat bots 18382 | -1/Command | Reached level 38 18510 | -1/Command | Identified Subatomic Replicator 18510 | -1/Command | Used Subatomic Replicator to create Alien Artifact 18531 | -1/Command | Spotted Striker 18531 | -1/Command | Spotted Executioner 18531 | -1/Command | Destroyed Striker 18531 | -1/Command | Destroyed Executioner 18573 | -1/Command | Destroyed Investigator 18618 | -1/Command | Upgraded with Utility slot (x1) 18620 | -1/Command | Found Exp. Targeting Computer 18622 | -1/Command | Found Exp. Core Analyzer 18639 | -1/Command | Destroyed 40 combat bots 18642 | -1/Command | Destroyed Executioner 18654 | -1/Command | Spotted Striker 18654 | -1/Command | Spotted Executioner 18658 | -1/Command | Spotted Striker 18658 | -1/Command | Spotted Executioner 18660 | -1/Command | Destroyed Striker 18663 | -1/Command | Destroyed Executioner 18669 | -1/Command | Destroyed Executioner 18671 | -1/Command | Destroyed Striker 18692 | -1/Command | Destroyed 14 combat bots 18697 | -1/Command | Identified Supercharged TR 18697 | -1/Command | Warped through subspace to slip node 18697 | -1/Command | Discovered new exit (range 5) 18701 | -1/Command | Entered Access_0 18702 | -1/Access_0 | Loaded intel: 60 machine locations 18702 | -1/Access_0 | Met Architect 18705 | -1/Access_0 | Destroyed A8 18707 | -1/Access_0 | Architect warped through subspace 18716 | -1/Access_0 | Spotted Enhanced Programmer 18720 | -1/Access_0 | Destroyed Enhanced Programmer 18740 | -1/Access_0 | Subspace Access Node disabled 18746 | -1/Access_0 | Architect warped through subspace 18774 | -1/Access_0 | Subspace Access Node disabled 18793 | -1/Access_0 | Architect warped through subspace 18810 | -1/Access_0 | A6 warped into view 18813 | -1/Access_0 | Destroyed A6 18846 | -1/Access_0 | Architect warped through subspace 18884 | -1/Access_0 | Architect warped through subspace 18886 | -1/Access_0 | Spotted Enhanced Programmer 18888 | -1/Access_0 | Destroyed Enhanced Programmer 18891 | -1/Access_0 | A5 warped into view 18897 | -1/Access_0 | Destroyed A5 18904 | -1/Access_0 | Architect warped through subspace 18921 | -1/Access_0 | Spotted Enhanced Programmer 18922 | -1/Access_0 | Destroyed Enhanced Programmer 18933 | -1/Access_0 | Architect warped through subspace 18959 | -1/Access_0 | Architect warped through subspace 18964 | -1/Access_0 | Found Alien Artifact 18964 | -1/Access_0 | Identified Integrity Redistributor 18964 | -1/Access_0 | Used Integrity Redistributor, redistributed integrity from core (-8) 18977 | -1/Access_0 | Found Alien Artifact 18977 | -1/Access_0 | Identified Integrated Dissipator 18977 | -1/Access_0 | Installed Integrated Dissipator, increased core heat dissipation (+20) 18998 | -1/Access_0 | Found Alien Artifact 19000 | -1/Access_0 | Architect warped through subspace 19013 | -1/Access_0 | Spotted Enhanced Programmer 19015 | -1/Access_0 | Destroyed Enhanced Programmer 19018 | -1/Access_0 | Architect warped through subspace 19046 | -1/Access_0 | Spotted Enhanced Programmer 19048 | -1/Access_0 | Destroyed Enhanced Programmer 19060 | -1/Access_0 | A4 warped into view 19069 | -1/Access_0 | Spotted Enhanced Programmer 19074 | -1/Access_0 | Destroyed Enhanced Programmer 19079 | -1/Access_0 | Architect warped through subspace 19092 | -1/Access_0 | Architect warped through subspace 19099 | -1/Access_0 | Subspace Access Node disabled 19101 | -1/Access_0 | Architect warped through subspace 19103 | -1/Access_0 | Destroyed A4 19113 | -1/Access_0 | Destroyed A2 19114 | -1/Access_0 | Extracted Singularity Gate Test 138-C access codes from A2's data core 19123 | -1/Access_0 | Build established: Scavenger-Sprinter 19125 | -1/Access_0 | Architect warped through subspace 19149 | -1/Access_0 | Destroyed 11 combat bots 19151 | -1/Access_0 | Architect warped through subspace 19161 | -1/Access_0 | Started Test 138-B, establishing a local singularity 19170 | -1/Access_0 | Architect warped through subspace 19182 | -1/Access_0 | Subspace Access Node disabled 19202 | -1/Access_0 | Reached level 39 19202 | -1/Access_0 | Destroyed Architect 19203 | -1/Access_0 | Architect triggered a singularity event 19206 | -1/Access_0 | Singularity Gate disabled 19209 | -1/Access_0 | Found Prototype Device 19209 | -1/Access_0 | Identified Desublimator 19235 | -1/Access_0 | Extracted unknown sensor trigger ID from Architect's data core 19235 | -1/Access_0 | Found Alien Artifact 19261 | -1/Access_0 | Spotted Enhanced Programmer 19263 | -1/Access_0 | Destroyed Enhanced Programmer 19273 | -1/Access_0 | A3 warped into view 19278 | -1/Access_0 | Destroyed A3 19340 | -1/Access_0 | Spotted Enhanced Programmer 19346 | -1/Access_0 | Destroyed Enhanced Programmer 19414 | -1/Access_0 | Found Alien Artifact 19414 | -1/Access_0 | Identified Hpw. Transdimensional Reconstructor (x2) 19414 | -1/Access_0 | Warped through subspace to slip node 19414 | -1/Access_0 | Discovered new exit (range 8) 19415 | -1/Access_0 | Identified Integrated Reactor 19415 | -1/Access_0 | Installed Integrated Reactor, increased core energy generation (+10) 19419 | *** | Escaped! Last Messages --------------- 19360_ Used Protomatter to restore core integrity (+49) 19361_ Used Protomatter to restore part integrity (+13) 19381_ Dropped Exp. Matter Compressor. 19385_ Dropped Protomatter-78. 19386_ Acquired Hvy. Hardcell Cannon. 19407_ Dropped Linked Autogun. 19408_ Workstation disabled. 19410_ Dropped Hvy. Hardcell Cannon. 19411_ Acquired Linked Autogun. 19414_ Acquired Alien Artifact. 19414_ Identified Hpw. Transdimensional Reconstructor. 19414_ Warped through subspace, drawn to slip node. 19414_ EXIT=FOUND 19415_ Identified Integrated Reactor. 19415_ Integrated Reactor installed, core energy generation increased (+10). [Achievement: 75k Club] [Achievement: 100k Club] [Achievement: 150k Club] [Achievement: Rambo] Map ----- +----------------------------------------------------+ | | | | | | | | | | | | | | | | | | | | | | | | | | | | | | | | | ?????????????????????????????????????????????????? | | ?????????????????????????????????????????????????? | | ?????????????????????????????????????????????????? | | ?????????????????????????????????????????????????? | | ?????????????????????????????????????????????????? | | ?????????????????????????????????????????????????? | | ????????????????????????###??????????????????????? | | ???????????????????????## ##?????????????????????? | | ???????????????????????# #?????????????????????? | | ???????????????????????# @ #?????????????????????? | | ??????????????????????## #?????????????????????? | | ??????????????????????# #?????????????????????? | | ??????????????????????# ##?????????????????????? | | ??????????????????????## #?????????????????????? | | ??????????????????????# #?????????????????????? | | ??????????????????????# ##?????????????????????? | | ??????????????????????# < #?????????????????????? | | ??????????????????????# ##?????????????????????? | | ??????????????????????## #??????????????????????? | | ???????????????????????####??????????????????????? | | ?????????????????????????????????????????????????? | | ?????????????????????????????????????????????????? | | ?????????????????????????????????????????????????? | | ?????????????????????????????????????????????????? | | ?????????????????????????????????????????????????? | | ?????????????????????????????????????????????????? | | ?????????????????????????????????????????????????? | | ?????????????????????????????????????????????????? | | ?????????????????????????????????????????????????? | | ?????????????????????????????????????????????????? | | ?????????????????????????????????????????????????? | | ?????????????????????????????????????????????????? | | ?????????????????????????????????????????????????? | | ?????????????????????????????????????????????????? | +----------------------------------------------------+ Best States ------------- Heat Dissipation 171 Energy Generation 96 Energy Capacity 900 Matter Stores 840 Matter Capacity 850 Sight Range 22 Robot Scan Range 22 Terrain Scan Range 20 Terrain Scan Density 110 Jamming Range 16 EM Shielding 3 Corruption Block 20 Resistance: KI 15 Resistance: TH 20 Resistance: EX 5 Point Defense Rating 80 Phase Shifting 20 Evasion (%) 96 Targeting Accuracy 28 Target Analysis 6 Core Analysis 8 Armor Integrity Analysis 40 Recoil Reduction 6 Matter Filtering 50 Kinecelleration 50 Offensive Hacking 38 Defensive Hacking 24 Authchip Count 2 Trap Extractor Capacity 6 Item Schematics ----------------- Lgt. EM Pulse Cannon | -8/Materials | Extracted System Restoration Module | -7/Factory | Scanalyzed Spear | -7/Factory | Extracted Arm. Huge Wheel | -7/Factory | Extracted Lgt. Deuterium Engine | -7/Factory | Extracted Katana | -7/Factory | Extracted Med. Matter Pod | -7/Factory | Extracted Imp. Terrain Scanner | -7/Factory | Extracted Gauss Rifle | -7/Factory | Extracted Imp. Field Recycling Unit | -7/Factory | Extracted Target Analyzer | -7/Factory | Extracted Adv. Assault Cannon | -7/Factory | Extracted Seismic Detector | -7/Factory | Extracted Imp. Terrain Scan Processor | -7/Factory | Extracted Cooling System | -7/Factory | Extracted Powered Hammer | -7/Factory | Extracted Cld. Deuterium Engine | -7/Factory | Extracted Corruption Screen | -7/Factory | Extracted Adv. Terrain Scan Processor | -7/Factory | Extracted Dynamic Insulation System | -7/Factory | Extracted Imp. Deuterium Engine | -7/Factory | Extracted Propulsion Shielding | -7/Factory | Extracted VTOL Module | -7/Factory | Extracted Mace | -7/Factory | Extracted Adv. Targeting Computer | -7/Factory | Extracted Shotgun | -7/Factory | Extracted Chainsword | -7/Factory | Extracted Imp. Cooling System | -7/Factory | Extracted Combat Drone Bay | -7/Data Miner | Free Lgt. Regenerative Plating | -7/Data Miner | Free Multireflex Exoskeleton | -7/Data Miner | Free Exp. Targeting Computer | -7/Data Miner | Free Antimatter Cannon | -7/Data Miner | Free Arm. Medium Treads | -7/Data Miner | Free Lyr. Heavy Armor Plating | -7/Data Miner | Free Imp. Remote Datajack | -7/Data Miner | Free Hyb. Fission Core | -7/Data Miner | Free Mni. Drone Bay | -7/Data Miner | Free Imp. Force Field | -7/Data Miner | Free Hvy. Gauss Cannon | -7/Data Miner | Free Cld. Cesium-ion Thruster | -6/Factory | Extracted Hpw. Shock Rifle | -6/Factory | Extracted Imp. Plasma Cutter | -6/Factory | Hacked Cryofiber Web | -6/Factory | Hacked Enh. Optical Array | -6/Factory | Extracted Hrd. Medium Armor Plating | -6/Factory | Extracted EM Disruption Field | -6/Factory | Extracted Wheel | -6/Factory | Extracted Adv. Transmission Jammer | -6/Factory | Hacked Coil Gun | -6/Factory | Extracted Imp. Datajack | -6/Factory | Extracted Cold Fusion Reactor | -6/Factory | Extracted Remote Datajack | -6/Factory | Extracted Hvy. Siege Treads | -6/Factory | Downloaded Linear Gravjet | -6/Factory | Hacked Imp. Transmission Jammer | -6/Factory | Hacked Disruptor Cannon | -5/Factory | Extracted Lrn. Proton Cannon | -5/Factory | Extracted Imp. Recalibrator | -5/Factory | Extracted Power Maul | -5/Factory | Extracted Mass Driver | -5/Factory | Extracted Transmission Jammer | -5/Factory | Extracted Salvage Targeting Computer | -5/Factory | Extracted Imp. Light Armor Plating | -5/Factory | Extracted Adv. Melee Analysis Suite | -5/Factory | Extracted KE Penetrator | -5/Factory | Extracted Imp. Matter Compressor | -5/Factory | Extracted Hvy. Missile Launcher | -5/Factory | Extracted System Shield | -5/Factory | Extracted Force Lance | -5/Factory | Hacked Imp. Corruption Screen | -4/Factory | Hacked Lgt. Quantum Reactor | -4/Factory | Hacked HERF Cannon | -4/Factory | Hacked Enh. Nova Cannon | -4/Factory | Hacked Magnetic Acceleration Cannon | -4/Factory | Extracted Imp. Gyrokinetic Inverter | -4/Factory | Hacked Exp. Core Analyzer | -4/Factory | Scanalyzed Com. Battery | -4/Factory | Extracted Gravmag Array | -4/Factory | Extracted Imp. Armor Integrity Analyzer | -4/Factory | Scanalyzed Imp. Kinecellerator | -4/Factory | Extracted Mic. Antimatter Reactor | -3/Research | Hacked Exp. Hacking Suite | -3/Research | Scanalyzed Cmb. Linear Gravjet | -3/Research | Scanalyzed Adv. Target Analyzer | -3/Research | Scanalyzed Robot Schematics ------------------ L-41 Fighter | -7/Data Miner | Free A-15 Conveyor | -7/Data Miner | Free H-66 Slayer | -7/Data Miner | Free B-60 Warrior | -5/Factory | Hacked R-10 Processor | -4/Factory | Hacked Fabricated ------------ Imp. Terrain Scanner | x2 | -7/Factory | Authchip Adv. Signal Interpreter | x2 | -7/Factory | Preloaded Imp. Matter Neutralizer | x1 | -6/Factory | Preloaded Exp. Targeting Computer | x1 | -6/Factory | Authchip Exp. Targeting Computer | x1 | -6/Factory | Authchip Field Propulsion Drive | x2 | -6/Factory | Preloaded Exp. Targeting Computer | x1 | -5/Factory | Authchip System Restoration Module | x2 | -5/Factory | Authchip Cmb. Linear Gravjet | x2 | -3/Research | Authchip Repaired ---------- Cmb. Linear Gravjet | 96% | -3/Research | Broken Studied --------- None Alien Tech Used ----------------- Transdimensional Reconstructor Subatomic Replicator Supercharged TR Integrity Redistributor Integrated Dissipator High-powered Transdimensional Reconstructor Integrated Reactor Achievements -------------- 100k Club 150k Club 75k Club A Problem For Future Me Anti-science Crusade Bending The Rules Bigger And Badder Bullet Installation Coming In Hot Deadly Force Drive-By Ew, Corruption Explosive Keycard Express Service Fishing Tech For Emergencies Only For Science! Heavy Suspicion Hornet's Nest I Laugh At Your Crits I Like You, Cogmind Incoming! Into The Breach Let Me Out Of Here Look Less Dangerous Next Time Most Wanted My Business Is Booming Network Effect Official Business Out Of My Way Overwhelming Plot Armor Rambo Showdown Sixth Sense Spot Them First The Better Part Of Valor The Bigger They Are Throw Away The Key Tune-up What Happened At The End There Challenges ------------ None RPGLIKE | -11 -10 -10 -10 -9 -8 -7 -7 -7 -7 -7 -7 -6 -6 -6 -6 -6 -5 -5 -5 -5 -4 -4 -4 -4 -4 -4 -4 -3 -2 -2 -1 -1 -1 -1 -1 --------- Run | Yrd Mat Min Exi Min Mat Fac Was Fac Low Low Dat Pro Fac Gar Fac Gar Fac Upp Upp War Pro Fac Ext Cet Arc Hub Gar Res Res Qua Acc Gar Acc Com Ac0 Levels Raised 38 | . . 1 1 . 6 3 . 4 . . 1 . 3 . 1 . 2 . 1 . 1 2 . . 1 . . 2 2 . 2 1 1 2 1 XP Earned 60369 | 3000 1305 1400 350 1316 9049 3298 230 5864 302 433 766 1182 3204 552 906 576 3234 381 473 648 996 2831 812 300 131 522 531 2713 2669 886 2591 1758 938 2897 1325 XP Spent 58500 | 2950 . 1500 910 . 9600 3400 . 6850 175 . . . 2900 650 2100 . 2300 . . 4050 . 2750 . 1700 . . . 2600 3400 1300 2900 . . 3200 3265 Upgrades 80 | 12 . 4 5 . 21 4 . 5 2 . . . 2 2 1 . 1 . . 5 . 3 . 1 . . . 1 2 2 1 . . 1 5 Power Slot 2 | 1 . . . . . . . . . . . . . . . . . . . . . . . . . . . . 1 . . . . . . Propulsion Slot 5 | 1 . . . . 1 1 . . . . . . 1 . . . . . . 1 . . . . . . . . . . . . . . . Utility Slot 10 | 1 . . . . 2 1 . 2 . . . . . . . . 1 . . . . . . . . . . . 1 . 1 . . 1 . Weapon Slot 5 | 1 . . . . . . . 2 . . . . . . . . . . . . . 1 . 1 . . . . . . . . . . . Core Integrity 5 | . . . 4 . . . . . . . . . . . . . . . . . . . . . . . . . . . . . . . 1 Heat Dissipation 6 | 1 . . . . 4 . . . . . . . . 1 . . . . . . . . . . . . . . . . . . . . . Energy Generation 3 | . . . . . 1 . . . . . . . . . . . . . . 2 . . . . . . . . . . . . . . . Energy Storage 1 | . . 1 . . . . . . . . . . . . . . . . . . . . . . . . . . . . . . . . . Matter Storage 1 | . . 1 . . . . . . . . . . . . . . . . . . . . . . . . . . . . . . . . . Mass Support 6 | 1 . 1 . . 2 . . . . . . . . . 1 . . . . . . . . . . . . 1 . . . . . . . Inventory Capacity 6 | 1 . 1 1 . 1 . . 1 . . . . 1 . . . . . . . . . . . . . . . . . . . . . . Sight Range 2 | . . . . . 2 . . . . . . . . . . . . . . . . . . . . . . . . . . . . . . Sensor Range 3 | 1 . . . . . . . . 2 . . . . . . . . . . . . . . . . . . . . . . . . . . Terrain Scan Density 1 | 1 . . . . . . . . . . . . . . . . . . . . . . . . . . . . . . . . . . . Ranged Accuracy 5 | . . . . . 1 . . . . . . . . 1 . . . . . . . . . . . . . . . 2 . . . . 1 Hack Attack % 2 | . . . . . 1 1 . . . . . . . . . . . . . . . . . . . . . . . . . . . . . Hack Defense % 2 | . . . . . 1 1 . . . . . . . . . . . . . . . . . . . . . . . . . . . . . KI Resistance % 3 | 1 . . . . 1 . . . . . . . . . . . . . . . . . . . . . . . . . . . . . 1 TH Resistance % 4 | 1 . . . . 1 . . . . . . . . . . . . . . . . 1 . . . . . . . . . . . . 1 EX Resistance % 1 | 1 . . . . . . . . . . . . . . . . . . . . . . . . . . . . . . . . . . . KI Damage % 4 | . . . . . 1 . . . . . . . . . . . . . . 1 . 1 . . . . . . . . . . . . 1 TH Damage % 2 | . . . . . 1 . . . . . . . . . . . . . . 1 . . . . . . . . . . . . . . . EX Damage % 1 | . . . . . 1 . . . . . . . . . . . . . . . . . . . . . . . . . . . . . . Protomatter Created 17277 | . 78 135 . 51 549 177 . 251 193 64 87 190 506 217 380 682 1055 197 387 338 207 1309 458 55 68 231 529 1467 722 298 140 989 600 3533 1134 Integrity Restored 25314 | . 162 336 . 153 1575 450 . 624 298 179 . 612 1103 477 1380 978 2194 591 829 579 182 3387 649 87 40 364 586 1033 781 162 296 236 362 2537 2092 Core 19863 | . 127 336 . 153 1575 450 . 411 164 162 . 612 837 477 1080 726 1828 591 341 428 140 2662 523 69 . 291 356 786 512 135 229 183 282 1859 1538 Parts 5451 | . 35 . . . . . . 213 134 17 . . 266 . 300 252 366 . 488 151 42 725 126 18 40 73 230 247 269 27 67 53 80 678 554 Protomatter Decayed 10146 | . 21 . . . . . . 449 61 . . . 112 . 56 245 251 . 14 379 139 283 283 . . 44 149 969 3605 . 87 620 376 1773 230 Game ------ Seed SapperImprovedHoverbase Manual? 0 Play Time 08:39:11 Cumulative 322.5 hours Start 2025.11.16 @ 11:12:28 End 2025.11.18 @ 09:15:01 Sessions 7 Manual Loads 0 Difficulty Rogue Special Mode Winter2019/RPGLIKE Game No. 130 Rogue 82 Adventurer 44 Explorer 4 Win Type 0 Total 11 Types 4/3/0/1/1/1/0/1/0/0 Lore% 72 Gallery% 69 Achievement% 48 Wizard Run 0 Options --------- Layout 0 ASCII 0 Keyboard 0 Movement Arrows Keybinds 0 Fullscreen 2 Font 18/SmallcapsGlow Map View 76x50 Zoom Use 0% Tactical HUD 1 Map Filters NONE Filters NONE Steam 1 RUN: 38d692c0-2216-4200-9b9b-2de15dd997c0